{"text_format":"1","workbook":"xlsx","n_sheets":16,"sheets":["SVERWEIS","Einführung","WENN-Beispiel","WENN-Lösung","Personen","sogehts","Urlaubsantrag","Datenbank","Tabelle1","Artikel","Abfrage","SVERWEIS TRUE","IHK Notenschlüssel","Chefliste","Liste Feiertage","Makros"],"not_rendered":{"charts":0,"images":0,"macros":1,"external_links":0,"defined_names":12,"comments":0,"pivot_tables":0},"unopened":[],"bounds":{"document_bytes":16777216,"sheet_cells":100000,"rows_first":2000,"rows_last":500,"rows_between":2000,"halvings":0,"cell_chars":16384,"cell_head_chars":4096},"cells_cut":0,"cells_raw":0,"read":"whole","date_system":"1900"}

{"sheet":"SVERWEIS","index":0,"n_rows":0,"n_cols":0,"rows_kept":0,"cut":false,"hidden":false,"merged":[]}

{"sheet":"Einführung","index":1,"n_rows":29,"n_cols":9,"rows_kept":29,"cut":false,"hidden":false,"merged":[[4,1,4,5]]}
[0]
[false]
[null,"Kindergeburtstag:"]
[]
[null,"Spaltenindex"]
[null,1,2,3,4,5]
[null,"Name Kind","Lieblingskuchen","Lieblingsessen","Lieblingsgetränk","Alter"]
[null,"Karla","Schokokuchen","Wiener Schnitzel","Erdbeermilch",7]
[null,"Mia","Mohrenkopfkuchen","Schaschlik","Wasser",4]
[null,"Maxi","Erdbeerkuchen","Spagetti","Milch",5]
[null,"Yvonne","Käsesahne","Spagetti","gelbe Limo",9]
[null,"Laura","Sahnetorte","Rindsroulade","weiße Limo",6]
[null,"Yannick","Schokotorte","Currywurst mit Pommes","Kindercola",8]
[null,"Leo","Himbereerkuchen","Pizza","Himbeersaft",8]
[null,"Maxi","Marmorkuchen","Pizza","Kakao",9]
[]
[]
[null,"Maxi doppelt Achtung !!! Bei S-Verweis"]
[]
[]
[]
[]
[]
[]
[null,"Suchkriterium",null,"Ausgabe"]
[null,"Maxi",null,null,null,null,null,null," "]
[]
[null,"Spaltenindex"]
[null,4]

{"sheet":"WENN-Beispiel","index":2,"n_rows":13,"n_cols":3,"rows_kept":13,"cut":false,"hidden":false,"merged":[]}
[]
[null,"Komplexes Beispiel Einkaufsrechnung : Rabatt -> ( Rechnungsbetrag; Stammkunde)"]
[]
[null,"Rechnungsbetrag",120]
[null,"Berechnung Endbetrag  nach Fall:",1]
[null,"Rabatt",{"$f":"VLOOKUP(C5,I17:J20,2,0)","v":{"$error":"#N/A"}}]
[null,"Endbetrag",{"$f":"C4-C4*C6","v":{"$error":"#N/A"}}]
[]
[null,"Szenario:"]
[null,"Beträgt der Rechnungsbetrag mindestens als 100 EURO und ist der Kunde Stammkunden, dann gibt es 8% Rabatt"]
[null,"Beträgt der Rechnungsbetrag mindestens als 100 EURO und ist der Kunde kein Stammkunden, dann gibt es 5% Rabatt"]
[null,"Beträgt der Rechnungsbetrag weniger als 100 EURO und ist der Kunde  Stammkunde, dann gibt es 3% Rabatt"]
[null,"Sonst gibt es keinen Rabatt"]

{"sheet":"WENN-Lösung","index":3,"n_rows":20,"n_cols":10,"rows_kept":20,"cut":false,"hidden":false,"merged":[]}
[]
[null,"Komplexes Beispiel Einkaufsrechnung : Rabatt -> ( Rechnungsbetrag; Stammkunde)"]
[]
[null,"Rechnungsbetrag",120]
[null,"Berechnung Endbetrag  nach Fall:",1]
[null,"Rabatt",{"$f":"VLOOKUP(C5,I17:J20,2,0)","v":0.08}]
[null,"Endbetrag",{"$f":"C4-C4*C6","v":110.4}]
[]
[null,"Szenario:"]
[null,"Beträgt der Rechnungsbetrag mindestens als 100 EURO und ist der Kunde Stammkunden, dann gibt es 8% Rabatt"]
[null,"Beträgt der Rechnungsbetrag mindestens als 100 EURO und ist der Kunde kein Stammkunden, dann gibt es 5% Rabatt"]
[null,"Beträgt der Rechnungsbetrag weniger als 100 EURO und ist der Kunde  Stammkunde, dann gibt es 3% Rabatt"]
[null,"Sonst gibt es keinen Rabatt"]
[]
[null,null,null,null,null,null,null,null,"Tabelle für SVERWEIS"]
[]
[null,null,null,null,null,null,null,null,1,0.08]
[null,null,null,null,null,null,null,null,2,0.05]
[null,null,null,null,null,null,null,null,3,0.03]
[null,null,null,null,null,null,null,null,4,0]

{"sheet":"Personen","index":4,"n_rows":1003,"n_cols":10,"rows_kept":1003,"cut":false,"hidden":false,"merged":[]}
["Spaltenindex"]
[1,2,3,4,5,6,7,8,9,10]
["PersonID","Anrede","Vorname","Nachname","Strasse","PLZ","Ort","Abteilung","Resturlaub","Vertretung"]
[2009,"Frau","Dorothee","Schröder","Dammstraße 49",68199,"Mannheim","Forschung",19,"Alt"]
[2010,"Frau","Ilona","Jansen","Innstraße 73",50735,"Köln","Außendienst",12,"Alt"]
[2011,"Frau","Dorothee","Benesch","Erzherzog-Johann-Straße 25",40210,"Düsseldorf","Außendienst",12,"Alt"]
[2012,"Frau","Helma","Groß","Bahnstraße 62",12105,"Berlin","Produktion",34,"Alt"]
[2013,"Frau","Mathilda","Bongartz","Elisabethstraße 7",38126,"Braunschweig","Logistik",28,"Alt"]
[2014,"Herr","Achim","Förster","Gutenbergstraße 52",39106,"Magdeburg","Controlling",25,"Alt"]
[2015,"Frau","Lea","Alt","Siemensstraße 66",38106,"Braunschweig","Logistik",25,"Alt"]
[2016,"Frau","Tabea","Schuhmacher","Kirchstraße 88",44267,"Dortmund","Außendienst",11,"Beck"]
[2017,"Herr","Frank","Meyer","Werkstraße 99",40235,"Düsseldorf","Außendienst",27,"Beck"]
[2018,"Herr","Julian","Schneider","Lärchenstraße 37",50935,"Köln","Außendienst",28,"Beck"]
[2019,"Frau","Vanessa","Jensen","Resselstraße 14",90427,"Nürnberg","Montage",18,"Beck"]
[2020,"Frau","Martina","Ohletz","Weingartenstraße 89",65189,"Wiesbaden","Buchhaltung",28,"Beck"]
[2021,"Herr","Marcus","Beckhaus","Schillerstraße 22",65199,"Wiesbaden","Buchhaltung",25,"Beck"]
[2022,"Frau","Ingrid","Bungart","Alte Straße 15",53225,"Bonn","Außendienst",13,"Beck"]
[2023,"Frau","Alexandra","Meister","Rosenstraße 58",22115,"Hamburg","Ausbildung",30,"Beck"]
[2024,"Herr","Gustaf","Kramer","Schulstraße 33",24148,"Kiel","Instandhaltung",14,"Beck"]
[2025,"Frau","Regina","Wagner","Mühlstraße 50",12349,"Berlin","Produktion",16,"Beck"]
[2026,"Herr","Achim","Klein","Ghegastraße 27",41238,"Mönchengladbach","Außendienst",20,"Beck"]
[2027,"Herr","Wolfgang","Maier","Raiffeisenstraße 6",12459,"Berlin","Produktion",15,"Beck"]
[2028,"Herr","Michael","Schröder","Elisabethstraße 84",48151,"Münster","Außendienst",18,"Beck"]
[2029,"Frau","Corinna","Urselmann","Anzengruberstraße 86",22083,"Hamburg","Ausbildung",34,"Beck"]
[2030,"Frau","Ricarda","Spielmann","Wiener Neustädter Straße 39",58089,"Hagen","Außendienst",20,"Beck"]
[2031,"Herr","Stefan","Groß","Dorfstraße 76",10709,"Berlin","Produktion",32,"Beck"]
[2032,"Frau","Katja","Urselmann","Fabrikstraße 101",20095,"Hamburg","Ausbildung",30,"Beckhaus"]
[2033,"Herr","Mike","Urselmann","Werkstraße 91",47839,"Krefeld","Außendienst",24,"Beckhaus"]
[2034,"Herr","Dirk","Wagner","Brückenstraße 40",30175,"Hannover","Logistik",30,"Beckhaus"]
[2035,"Frau","Martina","Bongartz","Wagnerstraße 32",28195,"Bremen","Wareneingang",17,"Beckhaus"]
[2036,"Herr","Eberhard","Weißmann","Roseggerstraße 48",80797,"München","Montage",10,"Beckhaus"]
[2037,"Frau","Kerstin","Neukirch","Tulpenstraße 45",33615,"Bielefeld","Außendienst",20,"Beckhaus"]
[2038,"Frau","Maja","Berger","Bahnstraße 51",12307,"Berlin","Produktion",20,"Beckhaus"]
[2039,"Frau","Margrit","Schuhmacher","Dr. Karl Renner-Straße 93",4109,"Leipzig","Marketing",24,"Beckhaus"]
[2040,"Frau","Gina","Urselmann","Roseggerstraße 49",45289,"Essen","Außendienst",26,"Beckhaus"]
[2041,"Frau","Verena","Fuhrmeister","Elisabethstraße 58",80803,"München","Montage",26,"Beckhaus"]
[2042,"Herr","Heinz","Köhler","Kindergartenstraße 78",90475,"Nürnberg","Montage",31,"Beckhaus"]
[2043,"Frau","Florence","Seidel","Bundesstraße 2",1129,"Dresden","Marketing",15,"Beckhaus"]
[2044,"Frau","Julia","Berger","Hanriederstraße 63",3053,"Cottbus","Vertrieb",13,"Beckhaus"]
[2045,"Herr","Dieter","Schmitz","Fadingerstraße 94",4289,"Leipzig","Marketing",24,"Benesch"]
[2046,"Frau","Esther","Groß","Rosenstraße 53",22119,"Hamburg","Ausbildung",16,"Berger"]
[2047,"Herr","Dirk","Herzog","Gartenstraße 64",48151,"Münster","Außendienst",28,"Berger"]
[2048,"Frau","Irene","Vosskamp","Quellenstraße 23",39116,"Magdeburg","Controlling",23,"Berger"]
[2049,"Frau","Michaela","Förster","Wagnerstraße 31",45889,"Gelsenkirchen","Außendienst",16,"Berger"]
[2050,"Frau","Beate","Groß","Industriestraße 101",58095,"Hagen","Außendienst",27,"Berger"]
[2051,"Frau","Barbara","Bongartz","Hochstraße 4",65189,"Wiesbaden","Buchhaltung",26,"Berger"]
[2052,"Frau","Louisa","Ohletz","Linzer Straße 54",68161,"Mannheim","Forschung",17,"Berger"]
[2053,"Frau","Regina","Berger","Lastenstraße 45",3042,"Cottbus","Vertrieb",12,"Berger"]
[2054,"Frau","Florence","Bergmann","Andreas-Hofer-Straße 93",23569,"Lübeck","Instandhaltung",19,"Berger"]
[2055,"Herr","Peter","Förster","Ghegastraße 36",22175,"Hamburg","Ausbildung",26,"Berger"]
[2056,"Frau","Verena","Bungart","Innstraße 48",42119,"Wuppertal","Außendienst",31,"Berger"]
[2057,"Frau","Theresa","Klein","Innsbrucker Straße 39",50858,"Köln","Außendienst",26,"Berger"]
[2058,"Herr","Achim","Jensen","Beethovenstraße 48",12355,"Berlin","Produktion",30,"Berger"]
[2059,"Frau","Helma","Dickmann","Burgenlandstraße 15",6116,"Halle","Controlling",21,"Berger"]
[2060,"Frau","Irene","Köhler","Flurstraße 19",39122,"Magdeburg","Controlling",20,"Berger"]
[2061,"Herr","David","Brinkmann","Seestraße 77",44793,"Bochum","Außendienst",19,"Berger"]
[2062,"Herr","Ingo","Schröder","Nelkenstraße 58",50996,"Köln","Außendienst",11,"Berger"]
[2063,"Herr","Bernd","Förster","Siedlerstraße 40",44369,"Dortmund","Außendienst",17,"Berger"]
[2064,"Frau","Maja","Ohletz","Fliederstraße 32",22299,"Hamburg","Ausbildung",30,"Berger"]
[2065,"Herr","Egon","Fuhrmeister","Donaustraße 12",68239,"Mannheim","Forschung",25,"Berger"]
[2066,"Frau","Petra","Fischer","Neubaustraße 35",12107,"Berlin","Produktion",14,"Berger"]
[2067,"Frau","Vanessa","Ohletz","Pestalozzistraße 16",80634,"München","Montage",18,"Berger"]
[2068,"Frau","Gina","Seidel","Linzer Straße 25",86156,"Augsburg","Montage",32,"Bergmann"]
[2069,"Herr","Alfred","Groß","Buchenstraße 81",45143,"Essen","Außendienst",15,"Bergmann"]
[2070,"Herr","Eberhard","Beckhaus","Seestraße 77",90403,"Nürnberg","Montage",15,"Bergmann"]
[2071,"Frau","Esther","Fuhrmeister","Roseggerstraße 8",48161,"Münster","Außendienst",12,"Bergmann"]
[2072,"Frau","Rebecca","Nickel","Landesstraße 24",22047,"Hamburg","Ausbildung",22,"Bergmann"]
[2073,"Frau","Miriam","Nickel","Negrellistraße 63",21031,"Hamburg","Ausbildung",27,"Bergmann"]
[2074,"Frau","Barbara","Seidel","Waldstraße 88",14059,"Berlin","Produktion",20,"Bergmann"]
[2075,"Frau","Corinna","Brinkmann","Kapellenstraße 88",48151,"Münster","Außendienst",12,"Bergmann"]
[2076,"Herr","Justus","Maier","Höhenstraße 3",18057,"Rostock","Produktion",12,"Bergmann"]
[2077,"Frau","Julia","Köhler","Stelzhamerstraße 38",99098,"Erfurt","Lohnabrechnung",24,"Bergmann"]
[2078,"Frau","Hilde","Schuhmacher","Kreuzstraße 78",90451,"Nürnberg","Montage",30,"Bergmann"]
[2079,"Frau","Theresa","Möller","Kirchenstraße 13",22119,"Hamburg","Ausbildung",32,"Bergmann"]
[2080,"Frau","Angela","Köhler","Haydnstraße 85",45896,"Gelsenkirchen","Außendienst",33,"Bergmann"]
[2081,"Frau","Roswitha","Bergmann","Grabenstraße 34",6108,"Halle","Controlling",26,"Bergmann"]
[2082,"Herr","Bernd","Mandel","Sportplatzstraße 11",1309,"Dresden","Marketing",14,"Bergmann"]
[2083,"Herr","Robert","Förster","Jahnstraße 19",40215,"Düsseldorf","Außendienst",21,"Bergmann"]
[2084,"Frau","Julia","Jung","Feldstraße 32",39114,"Magdeburg","Controlling",14,"Bergmann"]
[2085,"Herr","Mike","Schneider","Hubertusstraße 33",33659,"Bielefeld","Außendienst",26,"Bergmann"]
[2086,"Herr","André","Klein","Grillparzerstraße 41",13059,"Berlin","Produktion",26,"Bergmann"]
[2087,"Herr","Volker","Weißmann","Anton-Bruckner-Straße 92",60488,"Frankfurt","Buchhaltung",21,"Bergmann"]
[2088,"Frau","Hilde","Ohletz","Lagerhausstraße 91",22119,"Hamburg","Ausbildung",23,"Bergmann"]
[2089,"Frau","Helma","Seidel","Ringstraße 61",40629,"Düsseldorf","Außendienst",23,"Bongartz"]
[2090,"Frau","Miriam","Brinkmann","Burgenlandstraße 14",22297,"Hamburg","Ausbildung",10,"Bongartz"]
[2091,"Frau","Hilde","Berger","Kreuzstraße 92",10969,"Berlin","Produktion",26,"Bongartz"]
[2092,"Herr","Gottfried","Spielmann","Rosenstraße 98",40215,"Düsseldorf","Außendienst",13,"Bongartz"]
[2093,"Frau","Melissa","Bergmann","Linzer Straße 20",13355,"Berlin","Produktion",24,"Bongartz"]
[2094,"Herr","Jensen","Mayer","Bundesstraße 9",47119,"Duisburg","Außendienst",15,"Bongartz"]
[2095,"Herr","Bruno","Spielmann","Teichstraße 58",60329,"Frankfurt","Buchhaltung",25,"Bongartz"]
[2096,"Herr","Markus","Meyer","Buchenstraße 97",45472,"Mülheim","Außendienst",18,"Bongartz"]
[2097,"Herr","Gustaf","Fischer","Dr. Karl Renner-Straße 11",35582,"Wetzlar","Buchhaltung",24,"Bongartz"]
[2098,"Frau","Anke","Mayer","Goethestraße 35",44791,"Bochum","Außendienst",16,"Bongartz"]
[2099,"Frau","Hilde","Brinkmann","Adalbert-Stifter-Straße 15",4207,"Leipzig","Marketing",32,"Bongartz"]
[2100,"Herr","Holger","Kramer","Fabrikstraße 49",45307,"Essen","Außendienst",19,"Bongartz"]
[2101,"Herr","Dirk","Jung","Uferstraße 84",21075,"Hamburg","Ausbildung",29,"Bongartz"]
[2102,"Herr","Volker","Hoffmann","Eisenstädter Straße 58",80809,"München","Montage",12,"Bongartz"]
[2103,"Herr","André","Müller","Resselstraße 89",99087,"Erfurt","Lohnabrechnung",22,"Bongartz"]
[2104,"Herr","Gottfried","Köhler","Untere Hauptstraße 33",30657,"Hannover","Logistik",29,"Bongartz"]
[2105,"Herr","Eberhard","Schuhmacher","Kapellenstraße 100",1239,"Dresden","Marketing",15,"Bongartz"]
[2106,"Frau","Verena","Holstein","Lenaustraße 54",51147,"Köln","Außendienst",23,"Bongartz"]
[2107,"Herr","Bruno","Dickmann","Peter-Rosegger-Straße 15",10961,"Berlin","Produktion",34,"Brinkmann"]
[2108,"Frau","Helma","Großmann","Erlenstraße 70",46149,"Oberhausen","Außendienst",21,"Brinkmann"]
[2109,"Herr","Robert","Köhler","Bundesstraße 9",59065,"Hamm","Außendienst",30,"Brinkmann"]
[2110,"Frau","Helma","Spielmann","Tannenstraße 79",42289,"Wuppertal","Außendienst",10,"Brinkmann"]
[2111,"Herr","Alexander","Hoffmann","Dammstraße 11",35579,"Wetzlar","Buchhaltung",34,"Brinkmann"]
[2112,"Herr","Günther","Meister","Florianistraße 16",30165,"Hannover","Logistik",26,"Brinkmann"]
[2113,"Frau","Stefanie","Beckhaus","Negrellistraße 53",3044,"Cottbus","Vertrieb",17,"Brinkmann"]
[2114,"Frau","Roswitha","Bongartz","Westbahnstraße 89",30451,"Hannover","Logistik",13,"Brinkmann"]
[2115,"Frau","Anke","Bergmann","Europastraße 18",44803,"Bochum","Außendienst",11,"Brinkmann"]
[2116,"Frau","Michaela","Hoffbauer","Weingartenstraße 4",22455,"Hamburg","Ausbildung",22,"Brinkmann"]
[2117,"Frau","Josefine","Schmidt","Gärtnerstraße 89",68219,"Mannheim","Forschung",29,"Brinkmann"]
[2118,"Herr","Michael","Hoffmann","Dammstraße 57",50829,"Köln","Außendienst",10,"Brinkmann"]
[2119,"Frau","Anke","Dickmann","Goethestraße 36",1189,"Dresden","Marketing",25,"Brinkmann"]
[2120,"Frau","Irene","Urselmann","Jägerstraße 64",13127,"Berlin","Produktion",23,"Brinkmann"]
[2121,"Frau","Birgit","Schumacher","Lastenstraße 24",76199,"Karlsruhe","Forschung",13,"Brinkmann"]
[2122,"Frau","Katja","Großmann","Gärtnerstraße 83",45355,"Essen","Außendienst",32,"Brinkmann"]
[2123,"Frau","Angela","Schröder","Linzer Straße 74",47809,"Krefeld","Außendienst",14,"Brinkmann"]
[2124,"Herr","Justus","Hoffbauer","Untere Hauptstraße 100",86199,"Augsburg","Montage",19,"Brinkmann"]
[2125,"Herr","Ulrich","Ohletz","Sportplatzstraße 95",50823,"Köln","Außendienst",34,"Brinkmann"]
[2126,"Frau","Elvira","Seidel","Dr.-Karl-Renner-Straße 25",10789,"Berlin","Produktion",16,"Brinkmann"]
[2127,"Frau","Susanne","Möller","Steinfeldstraße 87",45277,"Essen","Außendienst",22,"Bungart"]
[2128,"Herr","Karl","Jung","Hanriederstraße 22",81371,"München","Montage",27,"Bungart"]
[2129,"Frau","Margrit","Fischer","Liechtensteinstraße 65",79100,"Freiburg","Forschung",12,"Bungart"]
[2130,"Frau","Katja","Möller","Siemensstraße 76",99097,"Erfurt","Lohnabrechnung",26,"Bungart"]
[2131,"Frau","Heike","Kramer","Ghegastraße 90",10629,"Berlin","Produktion",12,"Bungart"]
[2132,"Frau","Josefine","Schneider","Moosstraße 91",22457,"Hamburg","Ausbildung",27,"Bungart"]
[2133,"Frau","Susanne","Meister","Klosterstraße 48",23570,"Lübeck","Instandhaltung",13,"Bungart"]
[2134,"Frau","Josefine","Urselmann","Florianistraße 18",21033,"Hamburg","Ausbildung",10,"Bungart"]
[2135,"Frau","Helga","Schneider","Keplerstraße 89",22041,"Hamburg","Ausbildung",23,"Bungart"]
[2136,"Herr","Heinz","Vosskamp","Römerstraße 71",12101,"Berlin","Produktion",22,"Bungart"]
[2137,"Herr","Arne","Jansen","Hauptstraße 99",28719,"Bremen","Wareneingang",25,"Bungart"]
[2138,"Herr","Gustaf","Nickel","Wiener Neustädter Straße 6",44309,"Dortmund","Außendienst",24,"Bungart"]
[2139,"Herr","Jensen","Dickmann","Hauptstraße 77",90419,"Nürnberg","Montage",28,"Bungart"]
[2140,"Herr","Karl","Jensen","Leharstraße 95",65205,"Wiesbaden","Buchhaltung",20,"Bungart"]
[2141,"Herr","Markus","Nickel","Grillparzerstraße 76",10965,"Berlin","Produktion",24,"Bungart"]
[2142,"Herr","Franz","Herzog","Lärchenstraße 46",44369,"Dortmund","Außendienst",25,"Bungart"]
[2143,"Frau","Heike","Fischer","Hubertusstraße 98",28307,"Bremen","Wareneingang",24,"Bungart"]
[2144,"Frau","Hanna","Spielmann","Bahnstraße 4",44329,"Dortmund","Außendienst",15,"Dickmann"]
[2145,"Frau","Margrit","Jansen","Roseggerstraße 84",47229,"Duisburg","Außendienst",16,"Dickmann"]
[2146,"Frau","Irene","Ohletz","Ghegastraße 73",3052,"Cottbus","Vertrieb",20,"Dickmann"]
[2147,"Frau","Dorothee","Moll","Erzherzog-Johann-Straße 84",66131,"Saarbrücken","Warenausgang",25,"Dickmann"]
[2148,"Herr","Volker","Förster","Schillerstraße 46",22149,"Hamburg","Ausbildung",29,"Dickmann"]
[2149,"Herr","Gustaf","Bergmann","Anton-Bruckner-Straße 35",58089,"Hagen","Außendienst",32,"Dickmann"]
[2150,"Frau","Angela","Reichel","Maderspergerstraße 46",45881,"Gelsenkirchen","Außendienst",32,"Dickmann"]
[2151,"Frau","Annette","Schmitz","Stifterstraße 14",40229,"Düsseldorf","Außendienst",32,"Dickmann"]
[2152,"Frau","Rebecca","Hoffmann","Schloßstraße 29",10318,"Berlin","Produktion",29,"Dickmann"]
[2153,"Herr","Eberhard","Schmitt","Haydnstraße 26",40219,"Düsseldorf","Außendienst",17,"Dickmann"]
[2154,"Herr","Maximilian","Moll","Birkenstraße 53",45149,"Essen","Außendienst",13,"Dickmann"]
[2155,"Herr","Maximilian","Mandel","Jahnstraße 88",42281,"Wuppertal","Außendienst",32,"Dickmann"]
[2156,"Herr","Gottfried","Weißmann","Ortsstraße 27",22145,"Hamburg","Ausbildung",26,"Dickmann"]
[2157,"Herr","Frank","Spielmann","Sportplatzstraße 60",45145,"Essen","Außendienst",15,"Dickmann"]
[2158,"Herr","Manfred","Mayer","Schubertstraße 45",12159,"Berlin","Produktion",12,"Dickmann"]
[2159,"Herr","Marcus","Fuhrmeister","Mühlbachstraße 70",44287,"Dortmund","Außendienst",30,"Dickmann"]
[2160,"Frau","Margrit","Meier","Wiener Neustädter Straße 57",34125,"Kassel","Buchhaltung",18,"Dickmann"]
[2161,"Herr","Achim","Schmidt","Fichtenstraße 61",59071,"Hamm","Außendienst",20,"Dickmann"]
[2162,"Herr","Marcus","Schmitt","Kapellenstraße 93",44137,"Dortmund","Außendienst",18,"Dickmann"]
[2163,"Herr","Mike","Kessel","Lannerstraße 15",13189,"Berlin","Produktion",29,"Dickmann"]
[2164,"Frau","Julia","Weißmann","Erzherzog-Johann-Straße 80",12629,"Berlin","Produktion",26,"Dickmann"]
[2165,"Frau","Vanessa","Neumann","Erzherzog-Johann-Straße 5",13593,"Berlin","Produktion",25,"Dickmann"]
[2166,"Herr","Ulrich","Möller","Salzburgerstraße 70",70469,"Stuttgart","Forschung",30,"Dickmann"]
[2167,"Herr","Egon","Niemann","Liechtensteinstraße 49",81925,"München","Montage",11,"Dickmann"]
[2168,"Frau","Hanna","Jansen","Innstraße 91",20359,"Hamburg","Ausbildung",21,"Dickmann"]
[2169,"Herr","David","Müller","Anton-Bruckner-Straße 50",22117,"Hamburg","Ausbildung",32,"Fischer"]
[2170,"Frau","Dorothee","Neukirch","Raimundstraße 57",80999,"München","Montage",23,"Fischer"]
[2171,"Herr","Reinhold","Mayer","Fichtenstraße 2",13159,"Berlin","Produktion",30,"Fischer"]
[2172,"Herr","Jensen","Bungart","Buchenstraße 85",42349,"Wuppertal","Außendienst",32,"Fischer"]
[2173,"Frau","Esther","Brinkmann","Liechtensteinstraße 17",40547,"Düsseldorf","Außendienst",12,"Fischer"]
[2174,"Frau","Gina","Jung","Kirchstraße 42",86150,"Augsburg","Montage",26,"Fischer"]
[2175,"Herr","Friedhelm","Dickmann","Riedstraße 40",81477,"München","Montage",25,"Fischer"]
[2176,"Frau","Gina","Jansen","Lärchenstraße 47",50678,"Köln","Außendienst",14,"Fischer"]
[2177,"Herr","Julian","Mayer","Kirchenstraße 82",10969,"Berlin","Produktion",15,"Fischer"]
[2178,"Frau","Martina","Meister","Schubertstraße 54",10555,"Berlin","Produktion",27,"Fischer"]
[2179,"Herr","Jensen","Schuhmacher","Landstraße 43",45277,"Essen","Außendienst",13,"Fischer"]
[2180,"Frau","Irene","Möller","Hanriederstraße 2",3051,"Cottbus","Vertrieb",26,"Fischer"]
[2181,"Frau","Miriam","Förster","Dammstraße 34",47166,"Duisburg","Außendienst",18,"Fischer"]
[2182,"Frau","Angela","Beckhaus","Kreuzstraße 66",48151,"Münster","Außendienst",25,"Fischer"]
[2183,"Frau","Hilde","Fuhrmeister","Alte Landstraße 93",90441,"Nürnberg","Montage",10,"Fischer"]
[2184,"Herr","Peter","Möller","Raimundstraße 65",90425,"Nürnberg","Montage",21,"Fischer"]
[2185,"Frau","Hilde","Herzog","Siedlerstraße 75",13159,"Berlin","Produktion",11,"Fischer"]
[2186,"Frau","Miriam","Meier","Lagerhausstraße 47",1237,"Dresden","Marketing",12,"Fischer"]
[2187,"Herr","Justus","Kessel","Hamerlingstraße 3",4105,"Leipzig","Marketing",10,"Fischer"]
[2188,"Herr","Julian","Beck","Hauptstraße 21",4299,"Leipzig","Marketing",27,"Fischer"]
[2189,"Herr","Ernst","Beck","Industriestraße 97",70599,"Stuttgart","Forschung",18,"Fischer"]
[2190,"Herr","Maximilian","Holstein","Anton-Bruckner-Straße 8",70327,"Stuttgart","Forschung",19,"Fischer"]
[2191,"Frau","Hanna","Spielmann","Lastenstraße 69",90451,"Nürnberg","Montage",12,"Fischer"]
[2192,"Herr","Volker","Jung","Adalbert-Stifter-Straße 59",60487,"Frankfurt","Buchhaltung",27,"Fischer"]
[2193,"Frau","Martina","Urselmann","Brunnenstraße 59",9112,"Chemnitz","Marketing",24,"Fischer"]
[2194,"Frau","Helma","Brinkmann","Weingartenstraße 98",12157,"Berlin","Produktion",28,"Fischer"]
[2195,"Herr","Frank","Hoffmann","Grillparzerstraße 81",50997,"Köln","Außendienst",12,"Förster"]
[2196,"Frau","Ingrid","Meister","Westbahnstraße 69",28197,"Bremen","Wareneingang",16,"Förster"]
[2197,"Herr","Heinz","Hoffbauer","Lärchenstraße 100",60327,"Frankfurt","Buchhaltung",21,"Förster"]
[2198,"Herr","Ingo","Köhler","Fadingerstraße 65",13059,"Berlin","Produktion",12,"Förster"]
[2199,"Herr","Julian","Müller","Quellenstraße 74",44795,"Bochum","Außendienst",12,"Förster"]
[2200,"Herr","Peter","Neumann","Ringstraße 90",10405,"Berlin","Produktion",31,"Förster"]
[2201,"Herr","Jens","Kramer","Westbahnstraße 56",47803,"Krefeld","Außendienst",11,"Förster"]
[2202,"Herr","Philipp","Neumann","Liechtensteinstraße 12",12207,"Berlin","Produktion",28,"Förster"]
[2203,"Herr","Volker","Reichel","Römerstraße 26",28355,"Bremen","Wareneingang",12,"Förster"]
[2204,"Herr","Philipp","Beck","Badstraße 27",28237,"Bremen","Wareneingang",31,"Förster"]
[2205,"Herr","Justus","Fuhrmeister","Gewerbestraße 49",4178,"Leipzig","Marketing",21,"Förster"]
[2206,"Frau","Janine","Nickel","Buchenstraße 29",66126,"Saarbrücken","Warenausgang",32,"Förster"]
[2207,"Frau","Sonja","Neukirch","Gartenstraße 2",44137,"Dortmund","Außendienst",31,"Förster"]
[2208,"Herr","Franz","Jensen","Dr.-Karl-Renner-Straße 93",1257,"Dresden","Marketing",19,"Förster"]
[2209,"Herr","Arno","Fischer","Kremser Straße 81",1326,"Dresden","Marketing",13,"Förster"]
[2210,"Frau","Hanna","Hoffbauer","Weinbergstraße 46",34233,"Kassel","Buchhaltung",12,"Förster"]
[2211,"Herr","Dieter","Ohletz","Stifterstraße 41",39116,"Magdeburg","Controlling",27,"Förster"]
[2212,"Frau","Anne","Großmann","Mozartstraße 45",20457,"Hamburg","Ausbildung",33,"Förster"]
[2213,"Frau","Melissa","Neumann","Landstraße 60",34127,"Kassel","Buchhaltung",30,"Förster"]
[2214,"Herr","Reinhold","Meyer","Badstraße 16",22081,"Hamburg","Ausbildung",10,"Förster"]
[2215,"Herr","Marcus","Spielmann","Liechtensteinstraße 39",66129,"Saarbrücken","Warenausgang",24,"Fuhrmeister"]
[2216,"Herr","Eberhard","Schuhmacher","Föhrenstraße 25",3052,"Cottbus","Vertrieb",19,"Fuhrmeister"]
[2217,"Frau","Josefine","Meier","Römerstraße 14",22339,"Hamburg","Ausbildung",11,"Fuhrmeister"]
[2218,"Frau","Helma","Urselmann","Uferstraße 38",13059,"Berlin","Produktion",30,"Fuhrmeister"]
[2219,"Herr","André","Hoffmann","Mühlstraße 7",99085,"Erfurt","Lohnabrechnung",17,"Fuhrmeister"]
[2220,"Herr","Hendrik","Dickmann","Austraße 26",40545,"Düsseldorf","Außendienst",19,"Fuhrmeister"]
[2221,"Herr","Klaus","Alt","Anzengruberstraße 6",44379,"Dortmund","Außendienst",27,"Fuhrmeister"]
[2222,"Frau","Heike","Schuhmacher","Grazer Straße 70",81479,"München","Montage",31,"Fuhrmeister"]
[2223,"Frau","Helga","Weißmann","Ahornstraße 20",59071,"Hamm","Außendienst",15,"Fuhrmeister"]
[2224,"Frau","Susanne","Beckhaus","Föhrenstraße 79",44147,"Dortmund","Außendienst",12,"Fuhrmeister"]
[2225,"Herr","Ingo","Dickmann","Stelzhamerstraße 48",81667,"München","Montage",24,"Fuhrmeister"]
[2226,"Herr","Alexander","Petersen","Roseggerstraße 19",60529,"Frankfurt","Buchhaltung",18,"Fuhrmeister"]
[2227,"Frau","Elvira","Bongartz","Siedlungsstraße 34",81825,"München","Montage",30,"Fuhrmeister"]
[2228,"Frau","Ingrid","Maier","Ringstraße 70",22085,"Hamburg","Ausbildung",28,"Fuhrmeister"]
[2229,"Frau","Lea","Schmitt","Ahornstraße 25",20359,"Hamburg","Ausbildung",26,"Fuhrmeister"]
[2230,"Frau","Nicole","Fischer","Linzer Straße 79",80801,"München","Montage",23,"Fuhrmeister"]
[2231,"Herr","Friedhelm","Möller","Klosterstraße 68",79115,"Freiburg","Forschung",11,"Fuhrmeister"]
[2232,"Frau","Rebecca","Ohletz","Radetzkystraße 13",51109,"Köln","Außendienst",22,"Fuhrmeister"]
[2233,"Herr","David","Nickel","Salzburger Straße 28",1307,"Dresden","Marketing",32,"Fuhrmeister"]
[2234,"Herr","Maximilian","Reichel","Neubaustraße 58",6128,"Halle","Controlling",17,"Fuhrmeister"]
[2235,"Herr","Gottfried","Dickmann","Ghegastraße 85",81247,"München","Montage",13,"Fuhrmeister"]
[2236,"Herr","Franz","Holstein","Untere Hauptstraße 82",50859,"Köln","Außendienst",29,"Fuhrmeister"]
[2237,"Herr","Bernd","Petersen","Hochstraße 24",51069,"Köln","Außendienst",23,"Groß"]
[2238,"Frau","Katja","Meister","Fichtenstraße 99",22301,"Hamburg","Ausbildung",30,"Groß"]
[2239,"Herr","Achim","Reichel","Bergstraße 99",46145,"Oberhausen","Außendienst",13,"Groß"]
[2240,"Frau","Kerstin","Fuhrmeister","Buchenstraße 80",41063,"Mönchengladbach","Außendienst",26,"Groß"]
[2241,"Frau","Angela","Urselmann","Anton-Bruckner-Straße 24",76187,"Karlsruhe","Forschung",28,"Groß"]
[2242,"Herr","Arne","Urselmann","Schulstraße 46",42283,"Wuppertal","Außendienst",16,"Groß"]
[2243,"Herr","Frank","Brinkmann","Bergstraße 86",50997,"Köln","Außendienst",23,"Groß"]
[2244,"Frau","Hanna","Müller","Ortsstraße 19",42389,"Wuppertal","Außendienst",26,"Groß"]
[2245,"Frau","Louisa","Vosskamp","Pestalozzistraße 97",10999,"Berlin","Produktion",12,"Groß"]
[2246,"Frau","Corinna","Reichel","Jägerstraße 28",22117,"Hamburg","Ausbildung",14,"Groß"]
[2247,"Herr","Torsten","Maier","Moosstraße 23",86167,"Augsburg","Montage",13,"Groß"]
[2248,"Herr","Achim","Schuhmacher","Birkenstraße 12",22589,"Hamburg","Ausbildung",10,"Groß"]
[2249,"Frau","Annika","Ohletz","Birkenstraße 62",42113,"Wuppertal","Außendienst",31,"Groß"]
[2250,"Frau","Eva","Bongartz","Haydnstraße 14",22453,"Hamburg","Ausbildung",16,"Groß"]
[2251,"Frau","Henrietta","Bergmann","Wiener Neustädter Straße 58",12107,"Berlin","Produktion",12,"Groß"]
[2252,"Frau","Michaela","Urselmann","Fabrikstraße 14",4129,"Leipzig","Marketing",12,"Groß"]
[2253,"Herr","Gustaf","Köhler","Wiesenstraße 67",12305,"Berlin","Produktion",23,"Groß"]
[2254,"Herr","Dennis","Jung","Peter-Rosegger-Straße 13",33617,"Bielefeld","Außendienst",10,"Groß"]
[2255,"Herr","Jörg","Vosskamp","Birkenstraße 96",22175,"Hamburg","Ausbildung",31,"Groß"]
[2256,"Frau","Tina","Berger","Schulstraße 65",12165,"Berlin","Produktion",30,"Großmann"]
[2257,"Herr","Hans","Reichel","Wiener Neustädter Straße 32",12683,"Berlin","Produktion",19,"Großmann"]
[2258,"Frau","Corinna","Köhler","Landstraße 73",9126,"Chemnitz","Marketing",17,"Großmann"]
[2259,"Frau","Anke","Ohletz","Maderspergerstraße 58",1257,"Dresden","Marketing",15,"Großmann"]
[2260,"Frau","Martina","Bergmann","Kapellenstraße 8",22587,"Hamburg","Ausbildung",14,"Großmann"]
[2261,"Frau","Janine","Schmidt","Ahornstraße 19",68159,"Mannheim","Forschung",24,"Großmann"]
[2262,"Herr","Michael","Spielmann","Salzburger Straße 24",4178,"Leipzig","Marketing",22,"Großmann"]
[2263,"Herr","Stefan","Wagner","Blumenstraße 52",50933,"Köln","Außendienst",17,"Großmann"]
[2264,"Frau","Martina","Förster","Obere Hauptstraße 48",47249,"Duisburg","Außendienst",34,"Großmann"]
[2265,"Frau","Annette","Mayer","Lagerhausstraße 57",28205,"Bremen","Wareneingang",32,"Großmann"]
[2266,"Herr","Justus","Dickmann","Hauptstraße 93",22305,"Hamburg","Ausbildung",34,"Großmann"]
[2267,"Frau","Ilona","Bungart","Lagerstraße 5",70435,"Stuttgart","Forschung",14,"Großmann"]
[2268,"Herr","Dieter","Niemann","Kreuzstraße 81",79115,"Freiburg","Forschung",24,"Großmann"]
[2269,"Herr","Volker","Mandel","Mühlbachstraße 78",21035,"Hamburg","Ausbildung",33,"Großmann"]
[2270,"Frau","Mathilda","Herzog","Negrellistraße 55",24159,"Kiel","Instandhaltung",12,"Großmann"]
[2271,"Herr","Gottfried","Neumann","Schillerstraße 67",90403,"Nürnberg","Montage",29,"Großmann"]
[2272,"Frau","Florence","Nickel","Pestalozzistraße 72",1217,"Dresden","Marketing",14,"Großmann"]
[2273,"Frau","Michaela","Groß","Birkenstraße 82",68305,"Mannheim","Forschung",33,"Großmann"]
[2274,"Frau","Anke","Brinkmann","Bahnstraße 47",65195,"Wiesbaden","Buchhaltung",32,"Großmann"]
[2275,"Herr","Egon","Neumann","Landesstraße 56",14052,"Berlin","Produktion",33,"Herzog"]
[2276,"Frau","Lea","Dickmann","Hamerlingstraße 75",1324,"Dresden","Marketing",18,"Herzog"]
[2277,"Frau","Corinna","Maier","Grillparzerstraße 56",86150,"Augsburg","Montage",11,"Herzog"]
[2278,"Herr","Gottfried","Mayer","Birkenstraße 10",12627,"Berlin","Produktion",24,"Herzog"]
[2279,"Herr","André","Schuhmacher","Jahnstraße 80",10783,"Berlin","Produktion",21,"Herzog"]
[2280,"Herr","Ingo","Neukirch","Salzburger Straße 83",13585,"Berlin","Produktion",31,"Herzog"]
[2281,"Frau","Stefanie","Neumann","Moosstraße 50",90409,"Nürnberg","Montage",15,"Herzog"]
[2282,"Frau","Sonja","Neumann","Werkstraße 35",22397,"Hamburg","Ausbildung",16,"Herzog"]
[2283,"Frau","Helga","Bungart","Siedlungsstraße 16",12307,"Berlin","Produktion",30,"Herzog"]
[2284,"Herr","Friedhelm","Klein","Mühlbachstraße 90",60486,"Frankfurt","Buchhaltung",31,"Herzog"]
[2285,"Herr","Peter","Spielmann","Neubaustraße 41",12527,"Berlin","Produktion",14,"Herzog"]
[2286,"Frau","Melissa","Dickmann","Ghegastraße 4",18109,"Rostock","Produktion",28,"Herzog"]
[2287,"Herr","Ingo","Weißmann","Kindergartenstraße 69",20095,"Hamburg","Ausbildung",13,"Herzog"]
[2288,"Herr","Heiko","Hoffmann","Eichenstraße 88",12107,"Berlin","Produktion",14,"Herzog"]
[2289,"Herr","Frank","Spielmann","Neubaustraße 91",47228,"Duisburg","Außendienst",30,"Herzog"]
[2290,"Frau","Petra","Spielmann","Wiesenstraße 30",44799,"Bochum","Außendienst",27,"Herzog"]
[2291,"Herr","Justus","Köhler","Burgstraße 65",22547,"Hamburg","Ausbildung",13,"Herzog"]
[2292,"Frau","Helma","Förster","Schloßstraße 81",10407,"Berlin","Produktion",21,"Herzog"]
[2293,"Herr","Marcus","Hoffbauer","Wienerstraße 14",47807,"Krefeld","Außendienst",23,"Herzog"]
[2294,"Herr","André","Meister","Lenaustraße 54",12055,"Berlin","Produktion",29,"Hoffbauer"]
[2295,"Herr","Ferdinand","Müller","Ortsstraße 40",12555,"Berlin","Produktion",25,"Hoffbauer"]
[2296,"Frau","Anne","Fischer","Kaplanstraße 50",80538,"München","Montage",20,"Hoffbauer"]
[2297,"Herr","Franz","Jung","Weidenstraße 25",53115,"Bonn","Außendienst",22,"Hoffbauer"]
[2298,"Frau","Rebecca","Jansen","Kindergartenstraße 25",9117,"Chemnitz","Marketing",28,"Hoffbauer"]
[2299,"Herr","Alexander","Beckhaus","Goethestraße 8",45147,"Essen","Außendienst",10,"Hoffbauer"]
[2300,"Herr","Wolfgang","Berger","Föhrenstraße 27",40476,"Düsseldorf","Außendienst",22,"Hoffbauer"]
[2301,"Herr","Ferdinand","Seidel","Molkereistraße 30",55131,"Mainz","Produktion",29,"Hoffbauer"]
[2302,"Herr","Manfred","Mayer","Billrothstraße 55",42289,"Wuppertal","Außendienst",25,"Hoffbauer"]
[2303,"Frau","Roswitha","Fischer","Florianistraße 69",70188,"Stuttgart","Forschung",12,"Hoffbauer"]
[2304,"Frau","Helga","Weißmann","Waldstraße 85",41065,"Mönchengladbach","Außendienst",25,"Hoffbauer"]
[2305,"Frau","Henrietta","Meier","Wiener Straße 19",22605,"Hamburg","Ausbildung",18,"Hoffbauer"]
[2306,"Frau","Ingrid","Schäfer","Bachstraße 53",42327,"Wuppertal","Außendienst",17,"Hoffbauer"]
[2307,"Frau","Irene","Niemann","Kirchenstraße 21",99091,"Erfurt","Lohnabrechnung",18,"Hoffbauer"]
[2308,"Frau","Roswitha","Seidel","Erlenstraße 90",60488,"Frankfurt","Buchhaltung",28,"Hoffbauer"]
[2309,"Herr","Bruno","Fischer","Flurstraße 25",70437,"Stuttgart","Forschung",19,"Hoffbauer"]
[2310,"Herr","Dieter","Groß","Angerstraße 48",34117,"Kassel","Buchhaltung",14,"Hoffbauer"]
[2311,"Frau","Louisa","Schröder","Schützenstraße 44",80539,"München","Montage",20,"Hoffbauer"]
[2312,"Herr","Heinz","Meister","Grabenstraße 99",45468,"Mülheim","Außendienst",32,"Hoffbauer"]
[2313,"Frau","Michaela","Mandel","Höhenstraße 67",35583,"Wetzlar","Buchhaltung",13,"Hoffbauer"]
[2314,"Herr","André","Schröder","Lenaustraße 60",21079,"Hamburg","Ausbildung",13,"Hoffbauer"]
[2315,"Frau","Corinna","Weißmann","Höhenstraße 90",44793,"Bochum","Außendienst",30,"Hoffbauer"]
[2316,"Herr","Arne","Ohletz","Kapellenstraße 86",14197,"Berlin","Produktion",11,"Hoffbauer"]
[2317,"Frau","Michaela","Schäfer","Südtiroler Straße 27",50735,"Köln","Außendienst",25,"Hoffbauer"]
[2318,"Frau","Esther","Schneider","Salzburger Straße 16",40545,"Düsseldorf","Außendienst",14,"Hoffmann"]
[2319,"Herr","Gustaf","Weißmann","Wiener Neustädter Straße 60",21147,"Hamburg","Ausbildung",18,"Hoffmann"]
[2320,"Herr","Alfred","Schuhmacher","Grabenstraße 15",14129,"Berlin","Produktion",24,"Hoffmann"]
[2321,"Herr","Markus","Urselmann","Ringstraße 33",60528,"Frankfurt","Buchhaltung",19,"Hoffmann"]
[2322,"Frau","Heike","Moll","Sportplatzstraße 85",35580,"Wetzlar","Buchhaltung",28,"Hoffmann"]
[2323,"Frau","Anke","Schmitt","Schulstraße 75",10827,"Berlin","Produktion",28,"Hoffmann"]
[2324,"Herr","René","Vosskamp","Europastraße 29",70176,"Stuttgart","Forschung",30,"Hoffmann"]
[2325,"Frau","Tina","Groß","Moosstraße 67",12055,"Berlin","Produktion",13,"Hoffmann"]
[2326,"Frau","Birgit","Schuhmacher","Nestroystraße 44",22179,"Hamburg","Ausbildung",11,"Hoffmann"]
[2327,"Herr","Heinz","Schumacher","Oberfeldstraße 99",44137,"Dortmund","Außendienst",10,"Hoffmann"]
[2328,"Herr","Friedhelm","Jung","Kalvarienbergstraße 40",59075,"Hamm","Außendienst",22,"Hoffmann"]
[2329,"Herr","Georg","Niemann","Hanriederstraße 14",30539,"Hannover","Logistik",14,"Hoffmann"]
[2330,"Herr","Jensen","Beck","Kremser Straße 62",30655,"Hannover","Logistik",10,"Hoffmann"]
[2331,"Herr","Gottfried","Nickel","Dorfstraße 71",47059,"Duisburg","Außendienst",14,"Hoffmann"]
[2332,"Frau","Irene","Schröder","Salzburgerstraße 76",60433,"Frankfurt","Buchhaltung",12,"Hoffmann"]
[2333,"Herr","André","Förster","Gutenbergstraße 85",9117,"Chemnitz","Marketing",30,"Hoffmann"]
[2334,"Herr","Franz","Schmitt","Liechtensteinstraße 13",10315,"Berlin","Produktion",15,"Hoffmann"]
[2335,"Herr","Ulrich","Schäfer","Feldstraße 72",22113,"Hamburg","Ausbildung",22,"Hoffmann"]
[2336,"Frau","Tabea","Jung","Elisabethstraße 29",22175,"Hamburg","Ausbildung",33,"Holstein"]
[2337,"Frau","Beate","Jung","Anton-Bruckner-Straße 95",47167,"Duisburg","Außendienst",33,"Holstein"]
[2338,"Frau","Josefine","Meister","Industriestraße 11",4315,"Leipzig","Marketing",27,"Holstein"]
[2339,"Frau","Hanna","Neumann","Peter-Rosegger-Straße 23",12057,"Berlin","Produktion",12,"Holstein"]
[2340,"Frau","Angela","Brinkmann","Resselstraße 70",6114,"Halle","Controlling",33,"Holstein"]
[2341,"Frau","Leonie","Jansen","Birkenstraße 35",45897,"Gelsenkirchen","Außendienst",14,"Holstein"]
[2342,"Herr","Klaus","Kramer","Dammstraße 83",48145,"Münster","Außendienst",27,"Holstein"]
[2343,"Herr","Gustaf","Schneider","Weidenstraße 72",47226,"Duisburg","Außendienst",27,"Holstein"]
[2344,"Frau","Theresa","Dickmann","Buchenstraße 98",86199,"Augsburg","Montage",34,"Holstein"]
[2345,"Herr","Hendrik","Berger","Grabenstraße 47",4105,"Leipzig","Marketing",28,"Holstein"]
[2346,"Herr","Karl","Fischer","Billrothstraße 56",50769,"Köln","Außendienst",12,"Holstein"]
[2347,"Herr","Ulrich","Schröder","Donaustraße 59",6110,"Halle","Controlling",15,"Holstein"]
[2348,"Frau","Ilona","Holstein","Siedlerstraße 74",79108,"Freiburg","Forschung",10,"Holstein"]
[2349,"Frau","Susanne","Bongartz","Innstraße 76",14059,"Berlin","Produktion",25,"Holstein"]
[2350,"Frau","Mathilda","Niemann","Nestroystraße 44",50931,"Köln","Außendienst",29,"Holstein"]
[2351,"Herr","David","Mandel","Landstraße 74",12526,"Berlin","Produktion",23,"Holstein"]
[2352,"Frau","Ricarda","Holstein","Angerstraße 10",9127,"Chemnitz","Marketing",16,"Holstein"]
[2353,"Frau","Martina","Möller","Mühlbachstraße 95",12309,"Berlin","Produktion",20,"Holstein"]
[2354,"Frau","Janine","Neukirch","Waldstraße 36",12057,"Berlin","Produktion",22,"Holstein"]
[2355,"Herr","Stefan","Hoffbauer","Fliederstraße 81",12107,"Berlin","Produktion",11,"Holstein"]
[2356,"Herr","Bernd","Bongartz","Bahnstraße 79",99099,"Erfurt","Lohnabrechnung",10,"Jansen"]
[2357,"Frau","Helma","Beck","Wagnerstraße 38",33729,"Bielefeld","Außendienst",32,"Jansen"]
[2358,"Frau","Josefine","Urselmann","Kirchstraße 37",81549,"München","Montage",12,"Jansen"]
[2359,"Herr","Erich","Maier","Brucknerstraße 41",68163,"Mannheim","Forschung",23,"Jansen"]
[2360,"Herr","Bruno","Ohletz","Fichtenstraße 49",44141,"Dortmund","Außendienst",19,"Jansen"]
[2361,"Herr","Robert","Dickmann","Hubertusstraße 53",45276,"Essen","Außendienst",31,"Jansen"]
[2362,"Herr","Mike","Meyer","Blumenstraße 51",20099,"Hamburg","Ausbildung",14,"Jansen"]
[2363,"Herr","André","Bungart","Schubertstraße 36",66123,"Saarbrücken","Warenausgang",28,"Jansen"]
[2364,"Frau","Alexandra","Schneider","Klosterstraße 98",13053,"Berlin","Produktion",18,"Jansen"]
[2365,"Herr","Alfred","Jensen","Sportplatzstraße 43",14057,"Berlin","Produktion",20,"Jansen"]
[2366,"Frau","Regina","Jung","Weinbergstraße 24",4277,"Leipzig","Marketing",22,"Jansen"]
[2367,"Frau","Vanessa","Herzog","Friedhofstraße 22",12459,"Berlin","Produktion",16,"Jansen"]
[2368,"Herr","Erich","Moll","Rathausstraße 28",28237,"Bremen","Wareneingang",12,"Jansen"]
[2369,"Herr","Ingo","Förster","Innstraße 53",9116,"Chemnitz","Marketing",11,"Jansen"]
[2370,"Frau","Pia","Kessel","Dr.-Karl-Renner-Straße 40",53121,"Bonn","Außendienst",33,"Jansen"]
[2371,"Frau","Vanessa","Dickmann","Panoramastraße 52",4177,"Leipzig","Marketing",13,"Jansen"]
[2372,"Frau","Barbara","Berger","Lenaustraße 88",66129,"Saarbrücken","Warenausgang",14,"Jansen"]
[2373,"Frau","Josefine","Beck","Parkstraße 50",68161,"Mannheim","Forschung",30,"Jansen"]
[2374,"Herr","Friedhelm","Schmitz","Dorfstraße 40",68161,"Mannheim","Forschung",10,"Jansen"]
[2375,"Herr","Erich","Bungart","Erzherzog-Johann-Straße 10",99094,"Erfurt","Lohnabrechnung",20,"Jansen"]
[2376,"Frau","Vanessa","Meier","Liechtensteinstraße 7",20359,"Hamburg","Ausbildung",33,"Jensen"]
[2377,"Frau","Paula","Kramer","Seestraße 47",35581,"Wetzlar","Buchhaltung",34,"Jensen"]
[2378,"Frau","Josefine","Jung","Raiffeisenstraße 71",48147,"Münster","Außendienst",14,"Jensen"]
[2379,"Herr","Reinhold","Fischer","Anton-Bruckner-Straße 89",47805,"Krefeld","Außendienst",32,"Jensen"]
[2380,"Frau","Irene","Petersen","Oberfeldstraße 84",81539,"München","Montage",10,"Jensen"]
[2381,"Frau","Daniela","Hoffmann","Landstraße 8",90480,"Nürnberg","Montage",24,"Jensen"]
[2382,"Frau","Lea","Kramer","Bachstraße 78",86199,"Augsburg","Montage",11,"Jensen"]
[2383,"Frau","Anja","Großmann","Linzerstraße 67",44793,"Bochum","Außendienst",29,"Jensen"]
[2384,"Herr","Wolfgang","Weißmann","Ortsstraße 69",12559,"Berlin","Produktion",15,"Jensen"]
[2385,"Frau","Corinna","Reichel","Linzer Straße 49",10711,"Berlin","Produktion",25,"Jensen"]
[2386,"Herr","Hans","Petersen","Gartenstraße 15",39122,"Magdeburg","Controlling",19,"Jensen"]
[2387,"Frau","Gudrun","Jansen","Innsbrucker Straße 40",40476,"Düsseldorf","Außendienst",10,"Jensen"]
[2388,"Frau","Hanna","Moll","Siedlerstraße 57",14163,"Berlin","Produktion",25,"Jung"]
[2389,"Herr","Bruno","Meyer","Johann-Strauß-Straße 36",38110,"Braunschweig","Logistik",12,"Jung"]
[2390,"Herr","Alfred","Schuhmacher","Wagnerstraße 98",99085,"Erfurt","Lohnabrechnung",34,"Jung"]
[2391,"Frau","Barbara","Schmitt","Goethestraße 31",70197,"Stuttgart","Forschung",18,"Jung"]
[2392,"Herr","Ernst","Fuhrmeister","Eisenstädter Straße 11",12555,"Berlin","Produktion",15,"Jung"]
[2393,"Herr","Heinz","Meyer","Austraße 37",1139,"Dresden","Marketing",32,"Jung"]
[2394,"Frau","Tabea","Meier","Dr.-Karl-Renner-Straße 13",1257,"Dresden","Marketing",14,"Jung"]
[2395,"Frau","Barbara","Dickmann","Sonnenstraße 34",40476,"Düsseldorf","Außendienst",10,"Jung"]
[2396,"Frau","Hilde","Mandel","Keplerstraße 97",10369,"Berlin","Produktion",14,"Jung"]
[2397,"Herr","Marcus","Berger","Untere Hauptstraße 87",22391,"Hamburg","Ausbildung",33,"Jung"]
[2398,"Herr","Egon","Petersen","Gewerbestraße 34",70178,"Stuttgart","Forschung",18,"Jung"]
[2399,"Frau","Ricarda","Großmann","Werkstraße 52",20097,"Hamburg","Ausbildung",28,"Jung"]
[2400,"Frau","Tabea","Ohletz","Lenaustraße 2",45289,"Essen","Außendienst",17,"Jung"]
[2401,"Frau","Heike","Müller","Panoramastraße 37",10785,"Berlin","Produktion",15,"Jung"]
[2402,"Herr","Gustaf","Neukirch","Grazer Straße 90",80992,"München","Montage",23,"Jung"]
[2403,"Frau","Vanessa","Bergmann","Hangstraße 29",51109,"Köln","Außendienst",16,"Jung"]
[2404,"Herr","Klaus","Meyer","Kreuzstraße 80",81825,"München","Montage",13,"Jung"]
[2405,"Herr","Reinhold","Mandel","Andreas-Hofer-Straße 54",44359,"Dortmund","Außendienst",15,"Jung"]
[2406,"Frau","Annika","Hoffmann","Kapellenstraße 64",44135,"Dortmund","Außendienst",23,"Jung"]
[2407,"Herr","Franz","Mayer","Wagnerstraße 9",1189,"Dresden","Marketing",25,"Jung"]
[2408,"Herr","Volker","Müller","Wiesenstraße 48",13353,"Berlin","Produktion",11,"Jung"]
[2409,"Frau","Lea","Niemann","Panoramastraße 8",65933,"Frankfurt","Buchhaltung",29,"Jung"]
[2410,"Frau","Maja","Klein","Lärchenstraße 37",90453,"Nürnberg","Montage",21,"Jung"]
[2411,"Frau","Sabrina","Nickel","Siedlungsstraße 19",42279,"Wuppertal","Außendienst",10,"Kessel"]
[2412,"Herr","Reinhold","Jung","Grabenstraße 91",44319,"Dortmund","Außendienst",34,"Kessel"]
[2413,"Frau","Corinna","Meyer","Werkstraße 41",10627,"Berlin","Produktion",30,"Kessel"]
[2414,"Herr","Alexander","Herzog","Hanriederstraße 76",79117,"Freiburg","Forschung",17,"Kessel"]
[2415,"Frau","Ricarda","Meyer","Landesstraße 14",1219,"Dresden","Marketing",15,"Kessel"]
[2416,"Frau","Helga","Schröder","Rathausstraße 69",14052,"Berlin","Produktion",22,"Kessel"]
[2417,"Herr","Michael","Nickel","Weinbergstraße 44",47807,"Krefeld","Außendienst",18,"Kessel"]
[2418,"Herr","Eberhard","Großmann","Buchenstraße 68",12355,"Berlin","Produktion",24,"Kessel"]
[2419,"Herr","Ingo","Schröder","Austraße 65",13409,"Berlin","Produktion",30,"Kessel"]
[2420,"Herr","Frank","Schmitt","Anton-Bruckner-Straße 99",60322,"Frankfurt","Buchhaltung",10,"Kessel"]
[2421,"Herr","Arne","Beck","Steinfeldstraße 34",50767,"Köln","Außendienst",29,"Kessel"]
[2422,"Frau","Anke","Beck","Dorfstraße 33",90455,"Nürnberg","Montage",23,"Kessel"]
[2423,"Herr","Dennis","Möller","Salzburgerstraße 11",60326,"Frankfurt","Buchhaltung",15,"Kessel"]
[2424,"Herr","Dennis","Meier","Waldstraße 32",3053,"Cottbus","Vertrieb",10,"Kessel"]
[2425,"Herr","Julian","Jung","Radetzkystraße 63",53177,"Bonn","Außendienst",31,"Klein"]
[2426,"Frau","Corinna","Holstein","Seestraße 88",46149,"Oberhausen","Außendienst",12,"Klein"]
[2427,"Herr","Frank","Köhler","Badstraße 94",51107,"Köln","Außendienst",25,"Klein"]
[2428,"Frau","Gudrun","Urselmann","Moosstraße 74",80993,"München","Montage",22,"Klein"]
[2429,"Frau","Ingrid","Beckhaus","Landstraße 91",22523,"Hamburg","Ausbildung",11,"Klein"]
[2430,"Herr","Julian","Petersen","Weidenstraße 94",53123,"Bonn","Außendienst",16,"Klein"]
[2431,"Frau","Verena","Niemann","Johann-Strauß-Straße 63",22393,"Hamburg","Ausbildung",17,"Klein"]
[2432,"Frau","Angela","Vosskamp","Siedlungsstraße 35",44269,"Dortmund","Außendienst",19,"Klein"]
[2433,"Frau","Tabea","Brinkmann","Siemensstraße 60",35580,"Wetzlar","Buchhaltung",31,"Klein"]
[2434,"Herr","Erich","Beck","Föhrenstraße 44",4205,"Leipzig","Marketing",15,"Klein"]
[2435,"Herr","Alfred","Niemann","Molkereistraße 43",28719,"Bremen","Wareneingang",10,"Klein"]
[2436,"Frau","Sonja","Mandel","Hamerlingstraße 67",80802,"München","Montage",27,"Klein"]
[2437,"Frau","Anke","Kramer","Moosstraße 61",23556,"Lübeck","Instandhaltung",33,"Klein"]
[2438,"Frau","Annika","Mandel","Innstraße 81",80636,"München","Montage",32,"Köhler"]
[2439,"Frau","Eva","Müller","Weidenstraße 49",12279,"Berlin","Produktion",30,"Köhler"]
[2440,"Herr","Alfred","Mayer","Salzburger Straße 30",65207,"Wiesbaden","Buchhaltung",34,"Köhler"]
[2441,"Frau","Birgit","Meister","Hanriederstraße 33",53121,"Bonn","Außendienst",26,"Köhler"]
[2442,"Frau","Julia","Kessel","Westbahnstraße 14",24143,"Kiel","Instandhaltung",19,"Köhler"]
[2443,"Frau","Ingrid","Vosskamp","Alleestraße 23",1189,"Dresden","Marketing",26,"Köhler"]
[2444,"Herr","Stefan","Neumann","Wiener Straße 32",76229,"Karlsruhe","Forschung",33,"Köhler"]
[2445,"Frau","Melissa","Spielmann","Werkstraße 78",45327,"Essen","Außendienst",34,"Köhler"]
[2446,"Frau","Paula","Groß","Wienerstraße 8",68307,"Mannheim","Forschung",10,"Köhler"]
[2447,"Herr","Ferdinand","Groß","Schillerstraße 4",65193,"Wiesbaden","Buchhaltung",12,"Köhler"]
[2448,"Frau","Verena","Schneider","Burgenlandstraße 22",10365,"Berlin","Produktion",20,"Köhler"]
[2449,"Herr","Jörg","Dickmann","Oberfeldstraße 78",22609,"Hamburg","Ausbildung",28,"Köhler"]
[2450,"Herr","Stefan","Hoffbauer","Molkereistraße 14",24143,"Kiel","Instandhaltung",24,"Köhler"]
[2451,"Frau","Kerstin","Hoffmann","Föhrenstraße 37",34125,"Kassel","Buchhaltung",34,"Köhler"]
[2452,"Frau","Tina","Beckhaus","Nelkenstraße 55",14167,"Berlin","Produktion",17,"Köhler"]
[2453,"Herr","Erich","Schuhmacher","Molkereistraße 59",86199,"Augsburg","Montage",17,"Köhler"]
[2454,"Herr","Detlev","Groß","Brückenstraße 57",46145,"Oberhausen","Außendienst",13,"Köhler"]
[2455,"Frau","Kerstin","Großmann","Kirchstraße 97",20148,"Hamburg","Ausbildung",19,"Kramer"]
[2456,"Frau","Verena","Förster","Sonnenstraße 92",47059,"Duisburg","Außendienst",26,"Kramer"]
[2457,"Frau","Ilona","Großmann","Dammstraße 67",21109,"Hamburg","Ausbildung",13,"Kramer"]
[2458,"Frau","Stefanie","Weißmann","Westbahnstraße 96",55126,"Mainz","Produktion",21,"Kramer"]
[2459,"Frau","Stefanie","Meister","Kalvarienbergstraße 50",99099,"Erfurt","Lohnabrechnung",15,"Kramer"]
[2460,"Frau","Melissa","Seidel","Raimundstraße 33",28309,"Bremen","Wareneingang",26,"Kramer"]
[2461,"Frau","Theresa","Schäfer","Birkenstraße 24",40210,"Düsseldorf","Außendienst",34,"Kramer"]
[2462,"Frau","Regina","Niemann","Angerstraße 15",53229,"Bonn","Außendienst",25,"Kramer"]
[2463,"Herr","Achim","Schäfer","Pestalozzistraße 69",33611,"Bielefeld","Außendienst",31,"Kramer"]
[2464,"Herr","Peter","Möller","Dr. Karl Renner-Straße 52",4317,"Leipzig","Marketing",19,"Kramer"]
[2465,"Frau","Beate","Neumann","Raiffeisenstraße 51",81673,"München","Montage",33,"Kramer"]
[2466,"Herr","Alexander","Neukirch","Anzengruberstraße 39",22589,"Hamburg","Ausbildung",32,"Kramer"]
[2467,"Herr","Günther","Schuhmacher","Friedhofstraße 35",45276,"Essen","Außendienst",17,"Kramer"]
[2468,"Frau","Esther","Reichel","Teichstraße 86",65195,"Wiesbaden","Buchhaltung",11,"Kramer"]
[2469,"Frau","Julia","Berger","Pestalozzistraße 53",79114,"Freiburg","Forschung",19,"Kramer"]
[2470,"Frau","Josefine","Holstein","Rosenstraße 58",6132,"Halle","Controlling",17,"Maier"]
[2471,"Herr","Alexander","Brinkmann","Parkstraße 53",50769,"Köln","Außendienst",32,"Maier"]
[2472,"Herr","Justus","Köhler","Radetzkystraße 63",13055,"Berlin","Produktion",11,"Maier"]
[2473,"Herr","Arno","Schuhmacher","Dr. Karl Renner-Straße 14",3044,"Cottbus","Vertrieb",26,"Maier"]
[2474,"Herr","Ferdinand","Kessel","Beethovenstraße 5",81379,"München","Montage",23,"Maier"]
[2475,"Frau","Irene","Schäfer","Rathausstraße 91",55131,"Mainz","Produktion",30,"Maier"]
[2476,"Frau","Michaela","Hoffmann","Ahornstraße 91",13507,"Berlin","Produktion",23,"Maier"]
[2477,"Herr","André","Nickel","Flurstraße 76",47804,"Krefeld","Außendienst",26,"Maier"]
[2478,"Frau","Petra","Schuhmacher","Fabrikstraße 100",90482,"Nürnberg","Montage",14,"Maier"]
[2479,"Herr","Hans","Neukirch","Lärchenstraße 3",12351,"Berlin","Produktion",32,"Maier"]
[2480,"Herr","Peter","Großmann","Dammstraße 98",50739,"Köln","Außendienst",18,"Maier"]
[2481,"Herr","Dieter","Hoffbauer","Siemensstraße 98",10409,"Berlin","Produktion",34,"Maier"]
[2482,"Frau","Barbara","Petersen","Resselstraße 38",53123,"Bonn","Außendienst",13,"Maier"]
[2483,"Frau","Esther","Brinkmann","Florianistraße 57",22459,"Hamburg","Ausbildung",24,"Maier"]
[2484,"Herr","Arno","Groß","Eisenstädter Straße 36",40476,"Düsseldorf","Außendienst",26,"Maier"]
[2485,"Herr","Franz","Mandel","Alte Straße 78",68169,"Mannheim","Forschung",28,"Mandel"]
[2486,"Frau","Miriam","Maier","Roseggerstraße 43",3050,"Cottbus","Vertrieb",29,"Mandel"]
[2487,"Herr","Marcus","Schmidt","Johann-Strauß-Straße 34",35578,"Wetzlar","Buchhaltung",22,"Mandel"]
[2488,"Herr","Justus","Herzog","Adalbert-Stifter-Straße 89",45257,"Essen","Außendienst",27,"Mandel"]
[2489,"Frau","Louisa","Maier","Dorfstraße 58",14057,"Berlin","Produktion",22,"Mandel"]
[2490,"Frau","Daniela","Moll","Ortsstraße 75",22337,"Hamburg","Ausbildung",14,"Mandel"]
[2491,"Herr","Georg","Schäfer","Siedlerstraße 46",45892,"Gelsenkirchen","Außendienst",12,"Mandel"]
[2492,"Frau","Barbara","Brinkmann","Lagerstraße 69",9117,"Chemnitz","Marketing",31,"Mandel"]
[2493,"Frau","Corinna","Schröder","Seestraße 15",22159,"Hamburg","Ausbildung",28,"Mandel"]
[2494,"Frau","Annette","Schäfer","Dorfstraße 93",86199,"Augsburg","Montage",33,"Mandel"]
[2495,"Herr","Dennis","Fuhrmeister","Jägerstraße 57",30451,"Hannover","Logistik",13,"Mandel"]
[2496,"Herr","Ernst","Ohletz","Wienerstraße 36",80997,"München","Montage",28,"Mandel"]
[2497,"Herr","Bernd","Bergmann","Mühlbachstraße 70",47051,"Duisburg","Außendienst",22,"Mandel"]
[2498,"Frau","Nicole","Meier","Kirchstraße 78",58099,"Hagen","Außendienst",11,"Mandel"]
[2499,"Frau","Roswitha","Nickel","Kirchenstraße 6",65929,"Frankfurt","Buchhaltung",20,"Mandel"]
[2500,"Frau","Roswitha","Brinkmann","Kirchenstraße 21",10623,"Berlin","Produktion",15,"Mandel"]
[2501,"Herr","Justus","Jensen","Feldstraße 22",47058,"Duisburg","Außendienst",23,"Mandel"]
[2502,"Frau","Susanne","Ohletz","Florianistraße 94",13129,"Berlin","Produktion",28,"Mandel"]
[2503,"Frau","Roswitha","Nickel","Sonnenstraße 27",30629,"Hannover","Logistik",28,"Mandel"]
[2504,"Frau","Janine","Bongartz","Teichstraße 50",42109,"Wuppertal","Außendienst",32,"Mandel"]
[2505,"Herr","Klaus","Schmitz","Weingartenstraße 40",14193,"Berlin","Produktion",19,"Mandel"]
[2506,"Frau","Nicole","Schmidt","Keplerstraße 68",80339,"München","Montage",30,"Mayer"]
[2507,"Herr","Ulrich","Schneider","Pestalozzistraße 33",79104,"Freiburg","Forschung",15,"Mayer"]
[2508,"Frau","Anke","Meier","Schulstraße 48",60389,"Frankfurt","Buchhaltung",25,"Mayer"]
[2509,"Frau","Anne","Dickmann","Donaustraße 63",12205,"Berlin","Produktion",11,"Mayer"]
[2510,"Frau","Vanessa","Berger","Südtiroler Straße 81",4329,"Leipzig","Marketing",33,"Mayer"]
[2511,"Frau","Verena","Schneider","Tannenstraße 60",79110,"Freiburg","Forschung",29,"Mayer"]
[2512,"Frau","Tabea","Meister","Uferstraße 28",44149,"Dortmund","Außendienst",31,"Mayer"]
[2513,"Herr","Holger","Weißmann","Mozartstraße 20",44229,"Dortmund","Außendienst",15,"Mayer"]
[2514,"Frau","Corinna","Wagner","Uferstraße 39",45309,"Essen","Außendienst",10,"Mayer"]
[2515,"Herr","Julian","Fischer","Birkenstraße 26",42115,"Wuppertal","Außendienst",21,"Mayer"]
[2516,"Frau","Sonja","Klein","Waldstraße 70",99087,"Erfurt","Lohnabrechnung",17,"Mayer"]
[2517,"Frau","Lea","Herzog","Siedlerstraße 91",60316,"Frankfurt","Buchhaltung",21,"Mayer"]
[2518,"Frau","Daniela","Nickel","Schützenstraße 14",48155,"Münster","Außendienst",28,"Mayer"]
[2519,"Frau","Helma","Schuhmacher","Kirchenstraße 13",47137,"Duisburg","Außendienst",31,"Mayer"]
[2520,"Frau","Lea","Vosskamp","Rosenstraße 40",45134,"Essen","Außendienst",27,"Mayer"]
[2521,"Herr","Peter","Großmann","Keplerstraße 11",45219,"Essen","Außendienst",10,"Mayer"]
[2522,"Herr","Jensen","Seidel","Maderspergerstraße 29",44894,"Bochum","Außendienst",20,"Mayer"]
[2523,"Herr","Alfred","Möller","Höhenstraße 80",40547,"Düsseldorf","Außendienst",23,"Mayer"]
[2524,"Herr","Arne","Schumacher","Lagerstraße 99",18146,"Rostock","Produktion",25,"Mayer"]
[2525,"Frau","Anne","Fuhrmeister","Raimundstraße 19",30455,"Hannover","Logistik",27,"Mayer"]
[2526,"Frau","Rebecca","Dickmann","Rosenstraße 7",9111,"Chemnitz","Marketing",23,"Mayer"]
[2527,"Frau","Vanessa","Meier","Werkstraße 24",44799,"Bochum","Außendienst",22,"Mayer"]
[2528,"Herr","Arno","Fischer","Moosstraße 31",21109,"Hamburg","Ausbildung",26,"Meier"]
[2529,"Herr","Franz","Jung","Salzstraße 82",79111,"Freiburg","Forschung",25,"Meier"]
[2530,"Frau","Julia","Berger","Sonnenstraße 98",21035,"Hamburg","Ausbildung",28,"Meier"]
[2531,"Frau","Ricarda","Hoffbauer","Liechtensteinstraße 91",90429,"Nürnberg","Montage",23,"Meier"]
[2532,"Frau","Louisa","Holstein","Hangstraße 85",47166,"Duisburg","Außendienst",23,"Meier"]
[2533,"Frau","Verena","Köhler","Lagerhausstraße 88",23566,"Lübeck","Instandhaltung",20,"Meier"]
[2534,"Frau","Nicole","Seidel","Moosstraße 25",28355,"Bremen","Wareneingang",30,"Meier"]
[2535,"Frau","Anne","Herzog","Südtiroler Straße 3",59071,"Hamm","Außendienst",15,"Meier"]
[2536,"Frau","Susanne","Dickmann","Fabrikstraße 53",46049,"Oberhausen","Außendienst",25,"Meier"]
[2537,"Frau","Beate","Förster","Kirchenstraße 2",65187,"Wiesbaden","Buchhaltung",32,"Meier"]
[2538,"Frau","Helga","Schumacher","Untere Hauptstraße 48",60322,"Frankfurt","Buchhaltung",31,"Meier"]
[2539,"Frau","Martina","Vosskamp","Alte Landstraße 50",50935,"Köln","Außendienst",31,"Meier"]
[2540,"Frau","Rebecca","Moll","Alte Straße 16",12205,"Berlin","Produktion",30,"Meier"]
[2541,"Herr","David","Hoffbauer","Elisabethstraße 32",9120,"Chemnitz","Marketing",29,"Meier"]
[2542,"Frau","Katja","Holstein","Burgstraße 50",18069,"Rostock","Produktion",26,"Meier"]
[2543,"Herr","Günther","Fuhrmeister","Anzengruberstraße 94",18057,"Rostock","Produktion",16,"Meier"]
[2544,"Frau","Eva","Schäfer","Kirchstraße 46",66129,"Saarbrücken","Warenausgang",11,"Meier"]
[2545,"Herr","Günther","Schuhmacher","Kapellenstraße 51",45357,"Essen","Außendienst",25,"Meier"]
[2546,"Herr","Bruno","Müller","Bachstraße 31",45239,"Essen","Außendienst",19,"Meister"]
[2547,"Herr","Ernst","Weißmann","Nelkenstraße 13",70569,"Stuttgart","Forschung",29,"Meister"]
[2548,"Frau","Melissa","Fischer","Maderspergerstraße 81",76228,"Karlsruhe","Forschung",18,"Meister"]
[2549,"Frau","Ingrid","Brinkmann","Lastenstraße 96",23560,"Lübeck","Instandhaltung",21,"Meister"]
[2550,"Frau","Vanessa","Bongartz","Anton-Bruckner-Straße 52",50769,"Köln","Außendienst",13,"Meister"]
[2551,"Frau","Irene","Bergmann","Brucknerstraße 34",44357,"Dortmund","Außendienst",19,"Meister"]
[2552,"Herr","Achim","Schäfer","Schulstraße 57",40595,"Düsseldorf","Außendienst",21,"Meister"]
[2553,"Frau","Tina","Holstein","Wiesenstraße 44",4105,"Leipzig","Marketing",13,"Meister"]
[2554,"Frau","Heike","Holstein","Goethestraße 45",14055,"Berlin","Produktion",32,"Meister"]
[2555,"Herr","Bruno","Bongartz","Jahnstraße 63",90471,"Nürnberg","Montage",34,"Meister"]
[2556,"Herr","Hendrik","Jensen","Andreas-Hofer-Straße 70",50765,"Köln","Außendienst",18,"Meister"]
[2557,"Herr","Marcus","Nickel","Werkstraße 65",12347,"Berlin","Produktion",31,"Meister"]
[2558,"Frau","Henrietta","Meier","Anton-Bruckner-Straße 5",79111,"Freiburg","Forschung",26,"Meister"]
[2559,"Frau","Simone","Moll","Grabenstraße 8",13435,"Berlin","Produktion",21,"Meister"]
[2560,"Frau","Gudrun","Hoffmann","Riedstraße 30",12163,"Berlin","Produktion",32,"Meister"]
[2561,"Frau","Beate","Möller","Lärchenstraße 71",76133,"Karlsruhe","Forschung",18,"Meister"]
[2562,"Frau","Simone","Alt","Rathausstraße 17",13351,"Berlin","Produktion",14,"Meister"]
[2563,"Frau","Julia","Weißmann","Gewerbestraße 71",66119,"Saarbrücken","Warenausgang",17,"Meister"]
[2564,"Herr","Dieter","Kessel","Lannerstraße 90",13599,"Berlin","Produktion",18,"Meister"]
[2565,"Frau","Esther","Jansen","Badstraße 40",1219,"Dresden","Marketing",33,"Meister"]
[2566,"Frau","Rebecca","Meyer","Brucknerstraße 28",1219,"Dresden","Marketing",11,"Meister"]
[2567,"Herr","Franz","Hoffbauer","Adalbert-Stifter-Straße 82",65189,"Wiesbaden","Buchhaltung",18,"Meister"]
[2568,"Frau","Gudrun","Schuhmacher","Schubertstraße 53",44265,"Dortmund","Außendienst",29,"Meyer"]
[2569,"Frau","Florence","Schneider","Lagerstraße 94",39122,"Magdeburg","Controlling",16,"Meyer"]
[2570,"Frau","Corinna","Berger","Elisabethstraße 13",30459,"Hannover","Logistik",26,"Meyer"]
[2571,"Herr","Klaus","Alt","Anton-Bruckner-Straße 29",1127,"Dresden","Marketing",32,"Meyer"]
[2572,"Frau","Leonie","Hoffbauer","Erlenstraße 95",4289,"Leipzig","Marketing",23,"Meyer"]
[2573,"Herr","Egon","Jung","Römerstraße 48",60323,"Frankfurt","Buchhaltung",12,"Meyer"]
[2574,"Frau","Anja","Schuhmacher","Panoramastraße 93",51109,"Köln","Außendienst",23,"Meyer"]
[2575,"Herr","Jensen","Neukirch","Anzengruberstraße 67",22525,"Hamburg","Ausbildung",29,"Meyer"]
[2576,"Frau","Annika","Schmitt","Innsbrucker Straße 85",45470,"Mülheim","Außendienst",26,"Meyer"]
[2577,"Frau","Mathilda","Mayer","Föhrenstraße 52",44269,"Dortmund","Außendienst",15,"Meyer"]
[2578,"Frau","Rebecca","Bungart","Poststraße 89",35578,"Wetzlar","Buchhaltung",21,"Meyer"]
[2579,"Frau","Florence","Kessel","Schützenstraße 67",99094,"Erfurt","Lohnabrechnung",11,"Meyer"]
[2580,"Herr","Heiko","Petersen","Jägerstraße 90",22609,"Hamburg","Ausbildung",17,"Meyer"]
[2581,"Frau","Anne","Jung","Nelkenstraße 94",40599,"Düsseldorf","Außendienst",13,"Meyer"]
[2582,"Herr","Heinz","Vosskamp","Gewerbestraße 22",33617,"Bielefeld","Außendienst",33,"Meyer"]
[2583,"Herr","Georg","Fischer","Gewerbestraße 49",10785,"Berlin","Produktion",31,"Meyer"]
[2584,"Herr","Volker","Vosskamp","Teichstraße 71",30519,"Hannover","Logistik",32,"Meyer"]
[2585,"Frau","Florence","Spielmann","Hamerlingstraße 95",47228,"Duisburg","Außendienst",21,"Meyer"]
[2586,"Herr","Hendrik","Schuhmacher","Leharstraße 64",20149,"Hamburg","Ausbildung",19,"Meyer"]
[2587,"Frau","Tina","Förster","Sportplatzstraße 40",13589,"Berlin","Produktion",13,"Meyer"]
[2588,"Frau","Anke","Schneider","Kirchenstraße 25",41189,"Mönchengladbach","Außendienst",28,"Meyer"]
[2589,"Herr","David","Seidel","Marktstraße 72",30453,"Hannover","Logistik",21,"Meyer"]
[2590,"Herr","Franz","Mayer","Bergstraße 38",6108,"Halle","Controlling",18,"Moll"]
[2591,"Frau","Susanne","Schäfer","Moosstraße 94",28195,"Bremen","Wareneingang",11,"Moll"]
[2592,"Frau","Ricarda","Schmitt","Seestraße 50",12059,"Berlin","Produktion",21,"Moll"]
[2593,"Frau","Vanessa","Seidel","Panoramastraße 33",13405,"Berlin","Produktion",19,"Moll"]
[2594,"Frau","Katja","Schröder","Anton-Bruckner-Straße 8",12357,"Berlin","Produktion",20,"Moll"]
[2595,"Frau","Anja","Groß","Billrothstraße 20",12557,"Berlin","Produktion",29,"Moll"]
[2596,"Frau","Nicole","Hoffbauer","Schillerstraße 70",41063,"Mönchengladbach","Außendienst",28,"Moll"]
[2597,"Frau","Dorothee","Beck","Föhrenstraße 54",28217,"Bremen","Wareneingang",11,"Moll"]
[2598,"Frau","Gudrun","Schäfer","Gartenstraße 40",12557,"Berlin","Produktion",29,"Moll"]
[2599,"Herr","Arno","Herzog","Eichenstraße 95",40472,"Düsseldorf","Außendienst",14,"Moll"]
[2600,"Frau","Tina","Schmitz","Schillerstraße 41",80686,"München","Montage",23,"Moll"]
[2601,"Frau","Sonja","Klein","Werkstraße 59",14163,"Berlin","Produktion",26,"Moll"]
[2602,"Frau","Irene","Klein","Salzburgerstraße 46",12163,"Berlin","Produktion",31,"Moll"]
[2603,"Frau","Pia","Fischer","Teichstraße 94",80796,"München","Montage",29,"Moll"]
[2604,"Frau","Rebecca","Möller","Hochstraße 11",42115,"Wuppertal","Außendienst",23,"Moll"]
[2605,"Frau","Elvira","Meier","Lindenstraße 15",12043,"Berlin","Produktion",18,"Moll"]
[2606,"Herr","Julian","Meister","Ringstraße 46",39128,"Magdeburg","Controlling",23,"Moll"]
[2607,"Herr","Georg","Schmitt","Roseggerstraße 84",22763,"Hamburg","Ausbildung",27,"Möller"]
[2608,"Herr","Ulrich","Meister","Wiesenstraße 12",47807,"Krefeld","Außendienst",15,"Möller"]
[2609,"Frau","Alexandra","Mayer","Burgstraße 95",28759,"Bremen","Wareneingang",31,"Möller"]
[2610,"Frau","Ilona","Moll","Tulpenstraße 59",60313,"Frankfurt","Buchhaltung",30,"Möller"]
[2611,"Frau","Irene","Maier","Riedstraße 29",9127,"Chemnitz","Marketing",10,"Möller"]
[2612,"Herr","Bernd","Alt","Untere Hauptstraße 17",81825,"München","Montage",18,"Möller"]
[2613,"Herr","Markus","Förster","Hauptstraße 28",22761,"Hamburg","Ausbildung",34,"Möller"]
[2614,"Frau","Beate","Jensen","Sportplatzstraße 46",80798,"München","Montage",28,"Möller"]
[2615,"Herr","Hans","Jensen","Siedlungsstraße 33",50997,"Köln","Außendienst",26,"Möller"]
[2616,"Frau","Heike","Meyer","Peter-Rosegger-Straße 58",45149,"Essen","Außendienst",12,"Möller"]
[2617,"Frau","Susanne","Fuhrmeister","Hangstraße 95",10997,"Berlin","Produktion",12,"Möller"]
[2618,"Frau","Barbara","Hoffbauer","Lastenstraße 54",30177,"Hannover","Logistik",30,"Möller"]
[2619,"Frau","Hilde","Schäfer","Bergstraße 33",13599,"Berlin","Produktion",24,"Möller"]
[2620,"Herr","Mike","Fischer","Wagnerstraße 69",12347,"Berlin","Produktion",15,"Möller"]
[2621,"Herr","Karl","Bergmann","Bundesstraße 89",22119,"Hamburg","Ausbildung",22,"Möller"]
[2622,"Frau","Simone","Holstein","Hanriederstraße 8",4159,"Leipzig","Marketing",27,"Möller"]
[2623,"Frau","Barbara","Müller","Teichstraße 25",30657,"Hannover","Logistik",27,"Möller"]
[2624,"Herr","Achim","Niemann","Jägerstraße 21",68163,"Mannheim","Forschung",18,"Möller"]
[2625,"Frau","Ingrid","Bergmann","Feldstraße 76",30419,"Hannover","Logistik",11,"Möller"]
[2626,"Herr","Holger","Kramer","Hamerlingstraße 62",44803,"Bochum","Außendienst",20,"Müller"]
[2627,"Frau","Florence","Spielmann","Hochstraße 15",39110,"Magdeburg","Controlling",13,"Müller"]
[2628,"Frau","Helga","Schneider","Anzengruberstraße 14",28717,"Bremen","Wareneingang",25,"Müller"]
[2629,"Frau","Martina","Meyer","Alleestraße 47",33602,"Bielefeld","Außendienst",24,"Müller"]
[2630,"Frau","Anke","Meyer","Teichstraße 92",28759,"Bremen","Wareneingang",25,"Müller"]
[2631,"Herr","Friedhelm","Schneider","Adalbert-Stifter-Straße 49",14053,"Berlin","Produktion",12,"Müller"]
[2632,"Herr","Justus","Jung","Salzburger Straße 11",76229,"Karlsruhe","Forschung",30,"Müller"]
[2633,"Frau","Kerstin","Schmidt","Föhrenstraße 33",50674,"Köln","Außendienst",32,"Müller"]
[2634,"Frau","Gina","Bungart","Klosterstraße 17",28779,"Bremen","Wareneingang",30,"Müller"]
[2635,"Frau","Sonja","Neumann","Untere Hauptstraße 1",10317,"Berlin","Produktion",22,"Müller"]
[2636,"Frau","Sabrina","Schröder","Fadingerstraße 75",60385,"Frankfurt","Buchhaltung",24,"Müller"]
[2637,"Herr","Arno","Jansen","Bundesstraße 37",45472,"Mülheim","Außendienst",34,"Müller"]
[2638,"Frau","Louisa","Petersen","Grillparzerstraße 36",14165,"Berlin","Produktion",28,"Müller"]
[2639,"Herr","Arne","Schneider","Feldstraße 25",10587,"Berlin","Produktion",34,"Müller"]
[2640,"Frau","Susanne","Brinkmann","Molkereistraße 54",70567,"Stuttgart","Forschung",22,"Müller"]
[2641,"Herr","Justus","Moll","Jahnstraße 86",28327,"Bremen","Wareneingang",33,"Müller"]
[2642,"Frau","Tabea","Jansen","Adalbert-Stifter-Straße 37",47259,"Duisburg","Außendienst",19,"Müller"]
[2643,"Frau","Verena","Berger","Tulpenstraße 90",10965,"Berlin","Produktion",27,"Neukirch"]
[2644,"Herr","Jens","Kessel","Riedstraße 50",13088,"Berlin","Produktion",32,"Neukirch"]
[2645,"Frau","Sabrina","Meyer","Ghegastraße 26",28199,"Bremen","Wareneingang",20,"Neukirch"]
[2646,"Frau","Martina","Petersen","Weidenstraße 31",12101,"Berlin","Produktion",19,"Neukirch"]
[2647,"Frau","Verena","Schumacher","Salzstraße 56",90489,"Nürnberg","Montage",15,"Neukirch"]
[2648,"Frau","Henrietta","Beck","Bahnhofstraße 88",20457,"Hamburg","Ausbildung",25,"Neukirch"]
[2649,"Frau","Tabea","Vosskamp","Innstraße 99",80798,"München","Montage",20,"Neukirch"]
[2650,"Herr","Hans","Meier","Wagnerstraße 67",13059,"Berlin","Produktion",18,"Neukirch"]
[2651,"Frau","Sabrina","Schumacher","Burgstraße 78",50997,"Köln","Außendienst",34,"Neukirch"]
[2652,"Herr","David","Mayer","Salzstraße 95",28201,"Bremen","Wareneingang",25,"Neukirch"]
[2653,"Herr","Ingo","Hoffmann","Ghegastraße 89",23564,"Lübeck","Instandhaltung",31,"Neukirch"]
[2654,"Frau","Regina","Nickel","Schloßstraße 52",48155,"Münster","Außendienst",15,"Neukirch"]
[2655,"Herr","Volker","Maier","Erlenstraße 6",10707,"Berlin","Produktion",18,"Neukirch"]
[2656,"Frau","Corinna","Schmidt","Raimundstraße 96",50968,"Köln","Außendienst",34,"Neukirch"]
[2657,"Frau","Michaela","Meyer","Sonnenstraße 28",21109,"Hamburg","Ausbildung",27,"Neukirch"]
[2658,"Frau","Ricarda","Spielmann","Bachstraße 20",13189,"Berlin","Produktion",16,"Neukirch"]
[2659,"Herr","Gustaf","Schuhmacher","Pestalozzistraße 98",10787,"Berlin","Produktion",23,"Neukirch"]
[2660,"Herr","Bernd","Alt","Kapellenstraße 24",12099,"Berlin","Produktion",32,"Neukirch"]
[2661,"Frau","Annette","Nickel","Haydnstraße 79",39106,"Magdeburg","Controlling",33,"Neumann"]
[2662,"Herr","Stefan","Petersen","Nelkenstraße 36",86152,"Augsburg","Montage",18,"Neumann"]
[2663,"Herr","Bruno","Herzog","Anton-Bruckner-Straße 26",55130,"Mainz","Produktion",13,"Neumann"]
[2664,"Herr","Wolfgang","Neukirch","Buchenstraße 74",45897,"Gelsenkirchen","Außendienst",20,"Neumann"]
[2665,"Frau","Henrietta","Schumacher","Gärtnerstraße 28",42107,"Wuppertal","Außendienst",20,"Neumann"]
[2666,"Herr","Michael","Neukirch","Siemensstraße 94",33613,"Bielefeld","Außendienst",17,"Neumann"]
[2667,"Frau","Anne","Ohletz","Lagerhausstraße 54",12487,"Berlin","Produktion",27,"Neumann"]
[2668,"Frau","Ricarda","Wagner","Fadingerstraße 12",90443,"Nürnberg","Montage",29,"Neumann"]
[2669,"Herr","Stefan","Herzog","Wiener Straße 99",18055,"Rostock","Produktion",32,"Neumann"]
[2670,"Herr","Robert","Spielmann","Jägerstraße 70",50676,"Köln","Außendienst",34,"Neumann"]
[2671,"Herr","Holger","Herzog","Hauptstraße 33",33613,"Bielefeld","Außendienst",13,"Neumann"]
[2672,"Herr","Karl","Nickel","Burgstraße 24",34123,"Kassel","Buchhaltung",32,"Neumann"]
[2673,"Herr","Michael","Alt","Hubertusstraße 28",70193,"Stuttgart","Forschung",32,"Neumann"]
[2674,"Frau","Helga","Holstein","Liechtensteinstraße 65",1099,"Dresden","Marketing",27,"Neumann"]
[2675,"Herr","René","Fischer","Bachstraße 95",12163,"Berlin","Produktion",10,"Neumann"]
[2676,"Frau","Lea","Beck","Lannerstraße 14",79112,"Freiburg","Forschung",25,"Neumann"]
[2677,"Frau","Maja","Kessel","Mühlbachstraße 20",34130,"Kassel","Buchhaltung",20,"Neumann"]
[2678,"Herr","Justus","Förster","Mozartstraße 64",65205,"Wiesbaden","Buchhaltung",15,"Neumann"]
[2679,"Herr","Egon","Vosskamp","Uferstraße 83",44139,"Dortmund","Außendienst",30,"Neumann"]
[2680,"Frau","Helga","Brinkmann","Adalbert-Stifter-Straße 6",22527,"Hamburg","Ausbildung",14,"Nickel"]
[2681,"Frau","Daniela","Hoffbauer","Roseggerstraße 83",80686,"München","Montage",21,"Nickel"]
[2682,"Herr","Jens","Hoffmann","Grabenstraße 43",45131,"Essen","Außendienst",30,"Nickel"]
[2683,"Frau","Ingrid","Großmann","Bergstraße 45",79100,"Freiburg","Forschung",15,"Nickel"]
[2684,"Herr","Michael","Köhler","Bundesstraße 5",60529,"Frankfurt","Buchhaltung",33,"Nickel"]
[2685,"Frau","Regina","Spielmann","Goethestraße 42",80805,"München","Montage",18,"Nickel"]
[2686,"Herr","David","Bungart","Negrellistraße 79",50674,"Köln","Außendienst",34,"Nickel"]
[2687,"Frau","Vanessa","Weißmann","Klosterstraße 57",39106,"Magdeburg","Controlling",21,"Nickel"]
[2688,"Herr","Michael","Großmann","Dorfstraße 42",22419,"Hamburg","Ausbildung",16,"Nickel"]
[2689,"Frau","Maja","Hoffmann","Blumenstraße 62",81669,"München","Montage",21,"Nickel"]
[2690,"Frau","Anja","Nickel","Donaustraße 37",80337,"München","Montage",25,"Nickel"]
[2691,"Herr","Dennis","Kramer","Fliederstraße 25",30519,"Hannover","Logistik",33,"Nickel"]
[2692,"Frau","Florence","Beck","Bachstraße 46",21077,"Hamburg","Ausbildung",22,"Nickel"]
[2693,"Herr","Jens","Schmitt","Südtiroler Straße 52",50667,"Köln","Außendienst",16,"Nickel"]
[2694,"Frau","Angela","Meyer","Grabenstraße 54",22043,"Hamburg","Ausbildung",15,"Nickel"]
[2695,"Herr","Torsten","Seidel","Elisabethstraße 35",24146,"Kiel","Instandhaltung",31,"Nickel"]
[2696,"Herr","Alfred","Bergmann","Fabrikstraße 69",23562,"Lübeck","Instandhaltung",16,"Nickel"]
[2697,"Herr","Philipp","Beckhaus","Hauptstraße 47",50767,"Köln","Außendienst",33,"Nickel"]
[2698,"Herr","Heinz","Hoffbauer","Nelkenstraße 91",30521,"Hannover","Logistik",15,"Nickel"]
[2699,"Frau","Margrit","Bongartz","Tulpenstraße 74",14057,"Berlin","Produktion",15,"Nickel"]
[2700,"Herr","Achim","Jensen","Siedlungsstraße 82",65931,"Frankfurt","Buchhaltung",10,"Nickel"]
[2701,"Frau","Beate","Seidel","Pestalozzistraße 45",10967,"Berlin","Produktion",30,"Nickel"]
[2702,"Herr","Julian","Hoffmann","Leharstraße 39",10969,"Berlin","Produktion",10,"Nickel"]
[2703,"Herr","Mike","Kramer","Flurstraße 84",21129,"Hamburg","Ausbildung",16,"Nickel"]
[2704,"Frau","Annette","Berger","Leharstraße 42",47169,"Duisburg","Außendienst",23,"Nickel"]
[2705,"Herr","Philipp","Groß","Dr.-Karl-Renner-Straße 41",42117,"Wuppertal","Außendienst",18,"Niemann"]
[2706,"Frau","Vanessa","Bongartz","Molkereistraße 47",48143,"Münster","Außendienst",29,"Niemann"]
[2707,"Herr","Volker","Müller","Sportplatzstraße 90",4357,"Leipzig","Marketing",30,"Niemann"]
[2708,"Frau","Julia","Vosskamp","Untere Hauptstraße 31",9128,"Chemnitz","Marketing",12,"Niemann"]
[2709,"Herr","Frank","Neumann","Linzer Straße 33",12103,"Berlin","Produktion",16,"Niemann"]
[2710,"Frau","Corinna","Fischer","Friedhofstraße 77",22047,"Hamburg","Ausbildung",22,"Niemann"]
[2711,"Frau","Nicole","Seidel","Ortsstraße 98",47226,"Duisburg","Außendienst",32,"Niemann"]
[2712,"Frau","Paula","Großmann","Riedstraße 10",81675,"München","Montage",17,"Niemann"]
[2713,"Herr","Ferdinand","Bungart","Panoramastraße 68",47803,"Krefeld","Außendienst",16,"Niemann"]
[2714,"Herr","Ingo","Groß","Fliederstraße 73",13351,"Berlin","Produktion",30,"Niemann"]
[2715,"Herr","Mike","Berger","Moosstraße 87",55124,"Mainz","Produktion",32,"Niemann"]
[2716,"Frau","Stefanie","Schneider","Bundesstraße 75",44319,"Dortmund","Außendienst",29,"Niemann"]
[2717,"Herr","Dirk","Ohletz","Roseggerstraße 26",3042,"Cottbus","Vertrieb",15,"Ohletz"]
[2718,"Frau","Anne","Reichel","Rosenstraße 18",12557,"Berlin","Produktion",11,"Ohletz"]
[2719,"Frau","Elvira","Jung","Mühlbachstraße 75",70378,"Stuttgart","Forschung",29,"Ohletz"]
[2720,"Herr","Wolfgang","Schmitt","Brückenstraße 73",90475,"Nürnberg","Montage",10,"Ohletz"]
[2721,"Herr","Alfred","Dickmann","Dorfstraße 73",33689,"Bielefeld","Außendienst",10,"Ohletz"]
[2722,"Frau","Stefanie","Niemann","Hauptstraße 32",41199,"Mönchengladbach","Außendienst",19,"Ohletz"]
[2723,"Herr","Stefan","Meier","Kindergartenstraße 25",18109,"Rostock","Produktion",14,"Ohletz"]
[2724,"Herr","Marcus","Mayer","Adalbert-Stifter-Straße 31",81245,"München","Montage",25,"Ohletz"]
[2725,"Herr","Heiko","Neukirch","Föhrenstraße 25",68165,"Mannheim","Forschung",14,"Ohletz"]
[2726,"Frau","Annika","Petersen","Elisabethstraße 101",45899,"Gelsenkirchen","Außendienst",25,"Ohletz"]
[2727,"Frau","Helma","Moll","Ortsstraße 33",51149,"Köln","Außendienst",23,"Ohletz"]
[2728,"Frau","Sonja","Bongartz","Burgenlandstraße 68",80686,"München","Montage",34,"Ohletz"]
[2729,"Frau","Martina","Müller","Dr. Karl Renner-Straße 92",81669,"München","Montage",15,"Ohletz"]
[2730,"Frau","Leonie","Schäfer","Europastraße 71",20457,"Hamburg","Ausbildung",17,"Ohletz"]
[2731,"Herr","Marcus","Bungart","Anton-Bruckner-Straße 70",26123,"Oldenburg","Logistik",32,"Ohletz"]
[2732,"Herr","Stefan","Schmidt","Sonnenstraße 92",30159,"Hannover","Logistik",17,"Ohletz"]
[2733,"Herr","Alfred","Nickel","Hanriederstraße 37",70173,"Stuttgart","Forschung",29,"Ohletz"]
[2734,"Frau","Anja","Großmann","Klosterstraße 18",14055,"Berlin","Produktion",26,"Ohletz"]
[2735,"Herr","Alfred","Berger","Bergstraße 44",1156,"Dresden","Marketing",31,"Ohletz"]
[2736,"Frau","Lea","Kessel","Neubaustraße 37",81673,"München","Montage",14,"Ohletz"]
[2737,"Frau","Pia","Kessel","Feldstraße 25",81241,"München","Montage",28,"Ohletz"]
[2738,"Frau","Janine","Mayer","Schulstraße 63",10709,"Berlin","Produktion",27,"Petersen"]
[2739,"Herr","Arno","Mandel","Resselstraße 12",50825,"Köln","Außendienst",34,"Petersen"]
[2740,"Frau","Gina","Nickel","Siemensstraße 42",10625,"Berlin","Produktion",31,"Petersen"]
[2741,"Herr","Ernst","Hoffbauer","Landstraße 58",80638,"München","Montage",12,"Petersen"]
[2742,"Frau","Henrietta","Dickmann","Innstraße 13",47799,"Krefeld","Außendienst",29,"Petersen"]
[2743,"Herr","Alexander","Maier","Fliederstraße 44",50737,"Köln","Außendienst",12,"Petersen"]
[2744,"Frau","Alexandra","Fuhrmeister","Panoramastraße 54",60322,"Frankfurt","Buchhaltung",21,"Petersen"]
[2745,"Frau","Anne","Klein","Liechtensteinstraße 39",24149,"Kiel","Instandhaltung",11,"Petersen"]
[2746,"Herr","Markus","Seidel","Eisenstädter Straße 68",38122,"Braunschweig","Logistik",33,"Petersen"]
[2747,"Frau","Susanne","Neumann","Resselstraße 77",22177,"Hamburg","Ausbildung",32,"Petersen"]
[2748,"Herr","Jörg","Beck","Feldstraße 60",21073,"Hamburg","Ausbildung",15,"Petersen"]
[2749,"Herr","René","Wagner","Resselstraße 76",40470,"Düsseldorf","Außendienst",22,"Petersen"]
[2750,"Frau","Annika","Schäfer","Salzburger Straße 81",13581,"Berlin","Produktion",14,"Petersen"]
[2751,"Frau","Pia","Beckhaus","Elisabethstraße 100",4129,"Leipzig","Marketing",16,"Petersen"]
[2752,"Frau","Helga","Urselmann","Schubertstraße 94",44263,"Dortmund","Außendienst",24,"Petersen"]
[2753,"Frau","Verena","Spielmann","Billrothstraße 47",22525,"Hamburg","Ausbildung",18,"Reichel"]
[2754,"Frau","Maja","Schmidt","Hubertusstraße 99",60437,"Frankfurt","Buchhaltung",16,"Reichel"]
[2755,"Herr","Justus","Jansen","Kirchenstraße 25",76149,"Karlsruhe","Forschung",27,"Reichel"]
[2756,"Herr","Erich","Schröder","Pestalozzistraße 57",38112,"Braunschweig","Logistik",28,"Reichel"]
[2757,"Herr","Heiko","Bergmann","Weinbergstraße 86",10627,"Berlin","Produktion",32,"Reichel"]
[2758,"Frau","Rebecca","Moll","Höhenstraße 1",13505,"Berlin","Produktion",13,"Reichel"]
[2759,"Herr","Eberhard","Hoffbauer","Kalvarienbergstraße 71",1069,"Dresden","Marketing",11,"Reichel"]
[2760,"Herr","Jensen","Vosskamp","Kaplanstraße 100",13629,"Berlin","Produktion",28,"Reichel"]
[2761,"Herr","Ferdinand","Neukirch","Eichenstraße 1",33605,"Bielefeld","Außendienst",23,"Reichel"]
[2762,"Frau","Hanna","Schmidt","Andreas-Hofer-Straße 12",9122,"Chemnitz","Marketing",31,"Reichel"]
[2763,"Frau","Paula","Dickmann","Linzer Straße 24",70174,"Stuttgart","Forschung",34,"Reichel"]
[2764,"Frau","Louisa","Fuhrmeister","Brückenstraße 19",80798,"München","Montage",16,"Reichel"]
[2765,"Herr","Hans","Fischer","Weingartenstraße 2",47059,"Duisburg","Außendienst",15,"Reichel"]
[2766,"Herr","Mike","Spielmann","Salzstraße 73",12355,"Berlin","Produktion",19,"Reichel"]
[2767,"Frau","Julia","Spielmann","Mozartstraße 40",53173,"Bonn","Außendienst",14,"Schäfer"]
[2768,"Herr","Gottfried","Bergmann","Lastenstraße 38",21037,"Hamburg","Ausbildung",11,"Schäfer"]
[2769,"Frau","Beate","Mandel","Werkstraße 12",28211,"Bremen","Wareneingang",25,"Schäfer"]
[2770,"Frau","Regina","Schmitz","Alte Straße 75",13581,"Berlin","Produktion",24,"Schäfer"]
[2771,"Frau","Pia","Spielmann","Mozartstraße 52",39118,"Magdeburg","Controlling",21,"Schäfer"]
[2772,"Herr","Bruno","Müller","Waldstraße 53",35583,"Wetzlar","Buchhaltung",24,"Schäfer"]
[2773,"Frau","Annika","Förster","Wiesenstraße 8",12205,"Berlin","Produktion",12,"Schäfer"]
[2774,"Frau","Miriam","Ohletz","Westbahnstraße 31",13351,"Berlin","Produktion",33,"Schäfer"]
[2775,"Herr","Ingo","Großmann","Erlenstraße 69",50858,"Köln","Außendienst",27,"Schäfer"]
[2776,"Herr","Heinz","Maier","Eichenstraße 23",35579,"Wetzlar","Buchhaltung",26,"Schäfer"]
[2777,"Frau","Pia","Bergmann","Flurstraße 89",50674,"Köln","Außendienst",31,"Schäfer"]
[2778,"Frau","Stefanie","Moll","Panoramastraße 73",24113,"Kiel","Instandhaltung",28,"Schäfer"]
[2779,"Herr","André","Meister","Erzherzog-Johann-Straße 68",22085,"Hamburg","Ausbildung",21,"Schäfer"]
[2780,"Herr","Marcus","Schneider","Florianistraße 91",47249,"Duisburg","Außendienst",16,"Schäfer"]
[2781,"Herr","Dennis","Neumann","Sonnenstraße 92",51145,"Köln","Außendienst",23,"Schäfer"]
[2782,"Herr","Franz","Fischer","Elisabethstraße 88",26125,"Oldenburg","Logistik",31,"Schäfer"]
[2783,"Herr","Achim","Nickel","Badstraße 82",4177,"Leipzig","Marketing",14,"Schäfer"]
[2784,"Frau","Barbara","Holstein","Nelkenstraße 81",80686,"München","Montage",15,"Schmidt"]
[2785,"Frau","Sonja","Möller","Bahnhofstraße 15",34125,"Kassel","Buchhaltung",30,"Schmidt"]
[2786,"Herr","Friedhelm","Meier","Bachstraße 96",24143,"Kiel","Instandhaltung",31,"Schmidt"]
[2787,"Frau","Irene","Mayer","Schützenstraße 96",22393,"Hamburg","Ausbildung",15,"Schmidt"]
[2788,"Frau","Gina","Hoffbauer","Poststraße 44",81243,"München","Montage",29,"Schmidt"]
[2789,"Frau","Gudrun","Fischer","Austraße 30",39130,"Magdeburg","Controlling",21,"Schmidt"]
[2790,"Frau","Barbara","Brinkmann","Linzerstraße 2",4356,"Leipzig","Marketing",12,"Schmidt"]
[2791,"Frau","Anke","Mandel","Hanriederstraße 5",81475,"München","Montage",22,"Schmidt"]
[2792,"Frau","Esther","Kessel","Mozartstraße 12",23554,"Lübeck","Instandhaltung",31,"Schmidt"]
[2793,"Frau","Maja","Schmitz","Dammstraße 71",28197,"Bremen","Wareneingang",24,"Schmidt"]
[2794,"Frau","Gudrun","Neukirch","Linzer Straße 25",99096,"Erfurt","Lohnabrechnung",30,"Schmidt"]
[2795,"Herr","Jörg","Maier","Klosterstraße 4",59077,"Hamm","Außendienst",21,"Schmidt"]
[2796,"Frau","Daniela","Reichel","Marktstraße 87",65191,"Wiesbaden","Buchhaltung",26,"Schmitt"]
[2797,"Herr","Gottfried","Hoffbauer","Riedstraße 50",51063,"Köln","Außendienst",14,"Schmitt"]
[2798,"Herr","Philipp","Jansen","Schubertstraße 39",30629,"Hannover","Logistik",21,"Schmitt"]
[2799,"Herr","Heinz","Neumann","Fichtenstraße 55",12047,"Berlin","Produktion",17,"Schmitt"]
[2800,"Frau","Rebecca","Schuhmacher","Blumenstraße 2",22453,"Hamburg","Ausbildung",33,"Schmitt"]
[2801,"Frau","Florence","Möller","Mozartstraße 16",44267,"Dortmund","Außendienst",33,"Schmitt"]
[2802,"Herr","Achim","Schäfer","Gewerbestraße 38",68229,"Mannheim","Forschung",10,"Schmitt"]
[2803,"Frau","Gudrun","Weißmann","Kaplanstraße 90",13437,"Berlin","Produktion",30,"Schmitt"]
[2804,"Frau","Daniela","Neukirch","Riedstraße 12",44139,"Dortmund","Außendienst",23,"Schmitt"]
[2805,"Herr","Egon","Schmitt","Römerstraße 79",47239,"Duisburg","Außendienst",34,"Schmitt"]
[2806,"Herr","Arno","Klein","Obere Hauptstraße 42",20251,"Hamburg","Ausbildung",24,"Schmitt"]
[2807,"Frau","Michaela","Fuhrmeister","Schulstraße 84",35578,"Wetzlar","Buchhaltung",12,"Schmitt"]
[2808,"Herr","Hans","Köhler","Neubaustraße 12",41236,"Mönchengladbach","Außendienst",17,"Schmitt"]
[2809,"Herr","Bruno","Meyer","Fliederstraße 48",22149,"Hamburg","Ausbildung",13,"Schmitt"]
[2810,"Herr","Arno","Mayer","Hochstraße 29",26127,"Oldenburg","Logistik",33,"Schmitt"]
[2811,"Frau","Annika","Berger","Peter-Rosegger-Straße 11",34233,"Kassel","Buchhaltung",19,"Schmitz"]
[2812,"Frau","Josefine","Klein","Kirchstraße 81",45141,"Essen","Außendienst",29,"Schmitz"]
[2813,"Herr","Mike","Meyer","Birkenstraße 73",50672,"Köln","Außendienst",10,"Schmitz"]
[2814,"Frau","Tabea","Schumacher","Europastraße 85",33611,"Bielefeld","Außendienst",13,"Schmitz"]
[2815,"Frau","Martina","Möller","Landesstraße 30",70569,"Stuttgart","Forschung",29,"Schmitz"]
[2816,"Frau","Martina","Holstein","Industriestraße 16",45888,"Gelsenkirchen","Außendienst",29,"Schmitz"]
[2817,"Herr","Dirk","Kramer","Kindergartenstraße 28",23564,"Lübeck","Instandhaltung",25,"Schmitz"]
[2818,"Frau","Regina","Mandel","Salzstraße 6",53111,"Bonn","Außendienst",21,"Schmitz"]
[2819,"Herr","Heiko","Schmitt","Bahnstraße 61",28217,"Bremen","Wareneingang",34,"Schmitz"]
[2820,"Frau","Dorothee","Meister","Burgstraße 3",44793,"Bochum","Außendienst",29,"Schmitz"]
[2821,"Frau","Gudrun","Ohletz","Fliederstraße 13",42399,"Wuppertal","Außendienst",22,"Schmitz"]
[2822,"Herr","Jens","Moll","Erzherzog-Johann-Straße 3",10965,"Berlin","Produktion",18,"Schmitz"]
[2823,"Frau","Anne","Vosskamp","Siemensstraße 66",86161,"Augsburg","Montage",29,"Schneider"]
[2824,"Herr","Georg","Schneider","Fliederstraße 13",86163,"Augsburg","Montage",22,"Schneider"]
[2825,"Herr","Detlev","Großmann","Landesstraße 54",34117,"Kassel","Buchhaltung",11,"Schneider"]
[2826,"Frau","Heike","Reichel","Grabenstraße 26",4209,"Leipzig","Marketing",26,"Schneider"]
[2827,"Herr","Stefan","Beckhaus","Sonnenstraße 71",65185,"Wiesbaden","Buchhaltung",31,"Schneider"]
[2828,"Frau","Irene","Schröder","Donaustraße 87",21035,"Hamburg","Ausbildung",33,"Schneider"]
[2829,"Frau","Julia","Schmitz","Anton-Bruckner-Straße 35",13351,"Berlin","Produktion",12,"Schneider"]
[2830,"Frau","Martina","Mandel","Linzer Straße 1",90453,"Nürnberg","Montage",23,"Schneider"]
[2831,"Herr","Achim","Meier","Gewerbestraße 89",13439,"Berlin","Produktion",11,"Schneider"]
[2832,"Frau","Susanne","Berger","Europastraße 4",12101,"Berlin","Produktion",11,"Schneider"]
[2833,"Frau","Rebecca","Groß","Eisenstädter Straße 18",45144,"Essen","Außendienst",34,"Schneider"]
[2834,"Herr","Egon","Möller","Alleestraße 17",6126,"Halle","Controlling",12,"Schneider"]
[2835,"Frau","Dorothee","Spielmann","Fabrikstraße 98",39122,"Magdeburg","Controlling",23,"Schneider"]
[2836,"Frau","Nicole","Meyer","Römerstraße 43",13158,"Berlin","Produktion",27,"Schneider"]
[2837,"Frau","Dorothee","Moll","Kalvarienbergstraße 95",51149,"Köln","Außendienst",33,"Schneider"]
[2838,"Herr","André","Beck","Bahnhofstraße 73",90451,"Nürnberg","Montage",18,"Schneider"]
[2839,"Herr","Eberhard","Schmitz","Hauptstraße 99",18107,"Rostock","Produktion",30,"Schneider"]
[2840,"Herr","Justus","Schmitz","Schloßstraße 92",28219,"Bremen","Wareneingang",18,"Schneider"]
[2841,"Frau","Corinna","Brinkmann","Siemensstraße 14",42399,"Wuppertal","Außendienst",33,"Schneider"]
[2842,"Frau","Ilona","Schuhmacher","Bahnstraße 17",70197,"Stuttgart","Forschung",11,"Schneider"]
[2843,"Frau","Paula","Jansen","Fichtenstraße 100",12679,"Berlin","Produktion",33,"Schröder"]
[2844,"Herr","Friedhelm","Holstein","Lagerstraße 30",66132,"Saarbrücken","Warenausgang",30,"Schröder"]
[2845,"Frau","Lea","Klein","Untere Hauptstraße 56",28259,"Bremen","Wareneingang",15,"Schröder"]
[2846,"Frau","Tina","Kramer","Badstraße 15",40591,"Düsseldorf","Außendienst",29,"Schröder"]
[2847,"Herr","Heinz","Jansen","Quellenstraße 92",13125,"Berlin","Produktion",18,"Schröder"]
[2848,"Herr","Julian","Müller","Molkereistraße 69",81829,"München","Montage",23,"Schröder"]
[2849,"Frau","Josefine","Mandel","Untere Hauptstraße 57",70437,"Stuttgart","Forschung",16,"Schröder"]
[2850,"Herr","Ernst","Kessel","Dorfstraße 52",65193,"Wiesbaden","Buchhaltung",25,"Schröder"]
[2851,"Frau","Nicole","Fuhrmeister","Kirchstraße 42",70374,"Stuttgart","Forschung",24,"Schröder"]
[2852,"Frau","Leonie","Müller","Brückenstraße 17",21031,"Hamburg","Ausbildung",21,"Schröder"]
[2853,"Herr","Ernst","Herzog","Keplerstraße 66",90431,"Nürnberg","Montage",13,"Schröder"]
[2854,"Frau","Barbara","Meyer","Alte Landstraße 50",10625,"Berlin","Produktion",23,"Schröder"]
[2855,"Frau","Daniela","Mayer","Innsbrucker Straße 41",68161,"Mannheim","Forschung",18,"Schröder"]
[2856,"Frau","Tabea","Bungart","Dorfstraße 94",13353,"Berlin","Produktion",21,"Schröder"]
[2857,"Frau","Leonie","Hoffmann","Hubertusstraße 63",53119,"Bonn","Außendienst",28,"Schröder"]
[2858,"Frau","Michaela","Meister","Donaustraße 65",12309,"Berlin","Produktion",19,"Schröder"]
[2859,"Herr","Detlev","Nickel","Bergstraße 16",53225,"Bonn","Außendienst",25,"Schuhmacher"]
[2860,"Frau","Eva","Jensen","Raiffeisenstraße 7",22081,"Hamburg","Ausbildung",30,"Schuhmacher"]
[2861,"Herr","Jens","Fischer","Johann-Strauß-Straße 34",30629,"Hannover","Logistik",12,"Schuhmacher"]
[2862,"Herr","Maximilian","Schmidt","Gutenbergstraße 88",38116,"Braunschweig","Logistik",24,"Schuhmacher"]
[2863,"Herr","Erich","Mandel","Maderspergerstraße 80",81827,"München","Montage",23,"Schuhmacher"]
[2864,"Herr","Jensen","Bongartz","Salzburger Straße 62",66128,"Saarbrücken","Warenausgang",31,"Schuhmacher"]
[2865,"Frau","Anke","Niemann","Europastraße 51",60322,"Frankfurt","Buchhaltung",28,"Schuhmacher"]
[2866,"Herr","Dirk","Reichel","Jägerstraße 64",6126,"Halle","Controlling",21,"Schuhmacher"]
[2867,"Herr","Holger","Jung","Johann-Strauß-Straße 29",66130,"Saarbrücken","Warenausgang",21,"Schuhmacher"]
[2868,"Herr","Günther","Herzog","Ghegastraße 14",81679,"München","Montage",16,"Schuhmacher"]
[2869,"Herr","Gustaf","Bergmann","Pestalozzistraße 10",33605,"Bielefeld","Außendienst",21,"Schuhmacher"]
[2870,"Frau","Rebecca","Schneider","Siedlerstraße 37",45277,"Essen","Außendienst",22,"Schuhmacher"]
[2871,"Frau","Leonie","Jung","Feldstraße 12",42329,"Wuppertal","Außendienst",25,"Schuhmacher"]
[2872,"Frau","Susanne","Herzog","Mühlstraße 35",26135,"Oldenburg","Logistik",28,"Schuhmacher"]
[2873,"Herr","Markus","Bergmann","Schubertstraße 77",12681,"Berlin","Produktion",20,"Schuhmacher"]
[2874,"Herr","Detlev","Reichel","Siemensstraße 17",24105,"Kiel","Instandhaltung",19,"Schuhmacher"]
[2875,"Herr","Karl","Förster","Radetzkystraße 81",81539,"München","Montage",34,"Schuhmacher"]
[2876,"Herr","Ingo","Bongartz","Tulpenstraße 82",12277,"Berlin","Produktion",28,"Schuhmacher"]
[2877,"Frau","Elvira","Großmann","Stifterstraße 1",12435,"Berlin","Produktion",15,"Schuhmacher"]
[2878,"Frau","Lea","Seidel","Wiener Neustädter Straße 75",68161,"Mannheim","Forschung",21,"Schuhmacher"]
[2879,"Herr","Alfred","Jansen","Dr. Karl Renner-Straße 39",40599,"Düsseldorf","Außendienst",17,"Schuhmacher"]
[2880,"Frau","Theresa","Hoffbauer","Uferstraße 100",35576,"Wetzlar","Buchhaltung",22,"Schuhmacher"]
[2881,"Frau","Paula","Schäfer","Kapellenstraße 19",65189,"Wiesbaden","Buchhaltung",27,"Schuhmacher"]
[2882,"Herr","Marcus","Bungart","Rosenstraße 40",20095,"Hamburg","Ausbildung",17,"Schuhmacher"]
[2883,"Herr","Mike","Neukirch","Neubaustraße 68",79115,"Freiburg","Forschung",24,"Schuhmacher"]
[2884,"Herr","Wolfgang","Dickmann","Poststraße 51",4299,"Leipzig","Marketing",31,"Schumacher"]
[2885,"Herr","Frank","Meyer","Westbahnstraße 87",35585,"Wetzlar","Buchhaltung",33,"Schumacher"]
[2886,"Herr","Wolfgang","Mandel","Siemensstraße 93",60316,"Frankfurt","Buchhaltung",11,"Schumacher"]
[2887,"Frau","Leonie","Neukirch","Adalbert-Stifter-Straße 47",21109,"Hamburg","Ausbildung",32,"Schumacher"]
[2888,"Frau","Anke","Fischer","Dr. Karl Renner-Straße 64",45356,"Essen","Außendienst",15,"Schumacher"]
[2889,"Frau","Helga","Möller","Buchenstraße 58",70629,"Stuttgart","Forschung",18,"Schumacher"]
[2890,"Frau","Daniela","Schuhmacher","Florianistraße 3",45139,"Essen","Außendienst",14,"Schumacher"]
[2891,"Herr","Franz","Reichel","Johann-Strauß-Straße 21",76137,"Karlsruhe","Forschung",16,"Schumacher"]
[2892,"Frau","Daniela","Brinkmann","Radetzkystraße 9",60486,"Frankfurt","Buchhaltung",11,"Schumacher"]
[2893,"Herr","Hans","Nickel","Wiener Neustädter Straße 51",39114,"Magdeburg","Controlling",26,"Seidel"]
[2894,"Frau","Annika","Fuhrmeister","Feldstraße 68",12435,"Berlin","Produktion",26,"Seidel"]
[2895,"Frau","Louisa","Groß","Erlenstraße 22",42349,"Wuppertal","Außendienst",30,"Seidel"]
[2896,"Frau","Barbara","Seidel","Landesstraße 2",42285,"Wuppertal","Außendienst",16,"Seidel"]
[2897,"Herr","Arno","Vosskamp","Dr. Karl Renner-Straße 93",12487,"Berlin","Produktion",29,"Seidel"]
[2898,"Frau","Nicole","Herzog","Landstraße 4",28759,"Bremen","Wareneingang",20,"Seidel"]
[2899,"Frau","Elvira","Fischer","Teichstraße 3",10711,"Berlin","Produktion",11,"Seidel"]
[2900,"Frau","Hanna","Berger","Andreas-Hofer-Straße 23",21079,"Hamburg","Ausbildung",25,"Seidel"]
[2901,"Herr","Mike","Moll","Buchenstraße 92",79100,"Freiburg","Forschung",25,"Seidel"]
[2902,"Frau","Margrit","Jansen","Goethestraße 39",12689,"Berlin","Produktion",31,"Seidel"]
[2903,"Herr","Franz","Mandel","Siemensstraße 19",81675,"München","Montage",25,"Seidel"]
[2904,"Frau","Susanne","Nickel","Siemensstraße 55",13629,"Berlin","Produktion",25,"Seidel"]
[2905,"Frau","Melissa","Herzog","Wiener Straße 5",10557,"Berlin","Produktion",20,"Seidel"]
[2906,"Frau","Ingrid","Förster","Werkstraße 87",48149,"Münster","Außendienst",11,"Seidel"]
[2907,"Herr","Detlev","Mayer","Buchenstraße 60",65934,"Frankfurt","Buchhaltung",21,"Seidel"]
[2908,"Frau","Leonie","Hoffbauer","Tulpenstraße 86",20535,"Hamburg","Ausbildung",25,"Seidel"]
[2909,"Frau","Leonie","Fuhrmeister","Jahnstraße 80",76133,"Karlsruhe","Forschung",11,"Seidel"]
[2910,"Frau","Gina","Neumann","Schubertstraße 4",6120,"Halle","Controlling",26,"Seidel"]
[2911,"Herr","Marcus","Hoffbauer","Schubertstraße 66",68259,"Mannheim","Forschung",26,"Seidel"]
[2912,"Herr","Hans","Urselmann","Alte Landstraße 52",13055,"Berlin","Produktion",30,"Seidel"]
[2913,"Herr","Gustaf","Meister","Maderspergerstraße 34",22087,"Hamburg","Ausbildung",16,"Seidel"]
[2914,"Herr","Jens","Bergmann","Siedlerstraße 29",13127,"Berlin","Produktion",23,"Seidel"]
[2915,"Herr","Heinz","Dickmann","Burgenlandstraße 80",13629,"Berlin","Produktion",29,"Seidel"]
[2916,"Frau","Michaela","Schmitz","Brucknerstraße 85",68239,"Mannheim","Forschung",18,"Seidel"]
[2917,"Herr","Peter","Seidel","Leharstraße 60",51063,"Köln","Außendienst",27,"Seidel"]
[2918,"Herr","Maximilian","Meister","Oberfeldstraße 27",4229,"Leipzig","Marketing",13,"Seidel"]
[2919,"Frau","Maja","Urselmann","Wiener Neustädter Straße 100",39106,"Magdeburg","Controlling",15,"Spielmann"]
[2920,"Herr","Marcus","Schumacher","Stifterstraße 4",99086,"Erfurt","Lohnabrechnung",25,"Spielmann"]
[2921,"Herr","Georg","Jung","Brückenstraße 4",13355,"Berlin","Produktion",27,"Spielmann"]
[2922,"Herr","André","Seidel","Gutenbergstraße 31",4178,"Leipzig","Marketing",14,"Spielmann"]
[2923,"Frau","Gina","Seidel","Mozartstraße 48",42327,"Wuppertal","Außendienst",34,"Spielmann"]
[2924,"Frau","Hanna","Fuhrmeister","Römerstraße 57",40221,"Düsseldorf","Außendienst",12,"Spielmann"]
[2925,"Herr","Erich","Urselmann","Kirchstraße 50",14109,"Berlin","Produktion",24,"Spielmann"]
[2926,"Frau","Anne","Mandel","Hamerlingstraße 63",3042,"Cottbus","Vertrieb",20,"Spielmann"]
[2927,"Frau","Gudrun","Schmidt","Weidenstraße 14",28307,"Bremen","Wareneingang",33,"Spielmann"]
[2928,"Frau","Susanne","Holstein","Lärchenstraße 42",10719,"Berlin","Produktion",34,"Spielmann"]
[2929,"Herr","Eberhard","Förster","Adalbert-Stifter-Straße 73",33604,"Bielefeld","Außendienst",29,"Spielmann"]
[2930,"Herr","René","Kramer","Bahnhofstraße 13",10967,"Berlin","Produktion",22,"Spielmann"]
[2931,"Herr","Bruno","Schröder","Stelzhamerstraße 67",20251,"Hamburg","Ausbildung",12,"Spielmann"]
[2932,"Frau","Gudrun","Berger","Keplerstraße 11",10967,"Berlin","Produktion",10,"Spielmann"]
[2933,"Frau","Ricarda","Seidel","Erlenstraße 4",65183,"Wiesbaden","Buchhaltung",19,"Spielmann"]
[2934,"Frau","Birgit","Berger","Hubertusstraße 68",12103,"Berlin","Produktion",24,"Spielmann"]
[2935,"Frau","Petra","Meier","Lastenstraße 50",45128,"Essen","Außendienst",10,"Spielmann"]
[2936,"Herr","Michael","Weißmann","Birkenstraße 29",81927,"München","Montage",18,"Spielmann"]
[2937,"Frau","Daniela","Fuhrmeister","Wagnerstraße 32",22113,"Hamburg","Ausbildung",16,"Spielmann"]
[2938,"Frau","Margrit","Meister","Weingartenstraße 12",22395,"Hamburg","Ausbildung",31,"Spielmann"]
[2939,"Frau","Kerstin","Köhler","Bahnhofstraße 81",70186,"Stuttgart","Forschung",18,"Spielmann"]
[2940,"Frau","Barbara","Bungart","Landstraße 66",22175,"Hamburg","Ausbildung",28,"Spielmann"]
[2941,"Herr","Holger","Meister","Fichtenstraße 20",24159,"Kiel","Instandhaltung",22,"Spielmann"]
[2942,"Herr","David","Hoffbauer","Innsbrucker Straße 40",80687,"München","Montage",15,"Spielmann"]
[2943,"Herr","Justus","Fischer","Industriestraße 54",21149,"Hamburg","Ausbildung",28,"Spielmann"]
[2944,"Frau","Regina","Spielmann","Fabrikstraße 97",10178,"Berlin","Produktion",26,"Urselmann"]
[2945,"Herr","Alfred","Holstein","Pestalozzistraße 42",70195,"Stuttgart","Forschung",12,"Urselmann"]
[2946,"Herr","Günther","Bergmann","Innsbrucker Straße 33",50827,"Köln","Außendienst",25,"Urselmann"]
[2947,"Herr","Bernd","Bungart","Blumenstraße 93",18069,"Rostock","Produktion",10,"Urselmann"]
[2948,"Frau","Mathilda","Bungart","Neubaustraße 62",21109,"Hamburg","Ausbildung",12,"Urselmann"]
[2949,"Frau","Susanne","Petersen","Innstraße 50",12105,"Berlin","Produktion",32,"Urselmann"]
[2950,"Herr","Philipp","Seidel","Molkereistraße 60",12165,"Berlin","Produktion",20,"Urselmann"]
[2951,"Frau","Gudrun","Großmann","Dammstraße 64",81243,"München","Montage",15,"Urselmann"]
[2952,"Frau","Tina","Kramer","Ortsstraße 49",30419,"Hannover","Logistik",34,"Urselmann"]
[2953,"Frau","Alexandra","Jung","Europastraße 57",66129,"Saarbrücken","Warenausgang",29,"Urselmann"]
[2954,"Herr","Mike","Dickmann","Raiffeisenstraße 38",99094,"Erfurt","Lohnabrechnung",17,"Urselmann"]
[2955,"Frau","Henrietta","Schneider","Weingartenstraße 36",59067,"Hamm","Außendienst",13,"Urselmann"]
[2956,"Herr","Jörg","Großmann","Birkenstraße 44",81677,"München","Montage",22,"Urselmann"]
[2957,"Frau","Mathilda","Müller","Poststraße 74",48143,"Münster","Außendienst",16,"Urselmann"]
[2958,"Frau","Regina","Meier","Gutenbergstraße 97",90439,"Nürnberg","Montage",25,"Urselmann"]
[2959,"Herr","Markus","Herzog","Fabrikstraße 99",66126,"Saarbrücken","Warenausgang",25,"Urselmann"]
[2960,"Frau","Helma","Fuhrmeister","Salzburger Straße 78",51069,"Köln","Außendienst",23,"Urselmann"]
[2961,"Herr","Arne","Neumann","Feldstraße 42",9116,"Chemnitz","Marketing",10,"Urselmann"]
[2962,"Frau","Kerstin","Neumann","Grazer Straße 47",12353,"Berlin","Produktion",25,"Urselmann"]
[2963,"Frau","Pia","Urselmann","Beethovenstraße 44",66117,"Saarbrücken","Warenausgang",18,"Vosskamp"]
[2964,"Herr","Dieter","Fuhrmeister","Kirchenstraße 72",40595,"Düsseldorf","Außendienst",25,"Vosskamp"]
[2965,"Herr","Heinz","Spielmann","Haydnstraße 85",12055,"Berlin","Produktion",10,"Vosskamp"]
[2966,"Frau","Anne","Bongartz","Uferstraße 27",30457,"Hannover","Logistik",18,"Vosskamp"]
[2967,"Frau","Beate","Mandel","Keplerstraße 52",44892,"Bochum","Außendienst",13,"Vosskamp"]
[2968,"Herr","Achim","Vosskamp","Keplerstraße 14",13435,"Berlin","Produktion",21,"Vosskamp"]
[2969,"Herr","Heiko","Petersen","Siedlungsstraße 85",60386,"Frankfurt","Buchhaltung",21,"Vosskamp"]
[2970,"Frau","Paula","Klein","Waldstraße 6",45470,"Mülheim","Außendienst",31,"Vosskamp"]
[2971,"Frau","Melissa","Vosskamp","Marktstraße 17",28215,"Bremen","Wareneingang",12,"Vosskamp"]
[2972,"Frau","Hilde","Groß","Eisenstädter Straße 81",22111,"Hamburg","Ausbildung",34,"Vosskamp"]
[2973,"Frau","Beate","Holstein","Jahnstraße 2",45357,"Essen","Außendienst",13,"Vosskamp"]
[2974,"Frau","Maja","Jensen","Badstraße 43",86161,"Augsburg","Montage",31,"Vosskamp"]
[2975,"Frau","Tabea","Ohletz","Waldstraße 16",38122,"Braunschweig","Logistik",33,"Vosskamp"]
[2976,"Frau","Vanessa","Beck","Ahornstraße 87",81475,"München","Montage",27,"Vosskamp"]
[2977,"Frau","Birgit","Mayer","Mühlbachstraße 19",66130,"Saarbrücken","Warenausgang",27,"Vosskamp"]
[2978,"Herr","Achim","Vosskamp","Kirchstraße 66",70372,"Stuttgart","Forschung",18,"Vosskamp"]
[2979,"Frau","Kerstin","Groß","Quellenstraße 37",60389,"Frankfurt","Buchhaltung",15,"Vosskamp"]
[2980,"Frau","Maja","Jansen","Hamerlingstraße 47",3055,"Cottbus","Vertrieb",25,"Vosskamp"]
[2981,"Frau","Henrietta","Weißmann","Jahnstraße 15",4209,"Leipzig","Marketing",10,"Vosskamp"]
[2982,"Frau","Sabrina","Maier","Rathausstraße 57",40211,"Düsseldorf","Außendienst",25,"Vosskamp"]
[2983,"Frau","Hilde","Jansen","Eisenstädter Straße 69",22399,"Hamburg","Ausbildung",11,"Vosskamp"]
[2984,"Herr","Markus","Neukirch","Alleestraße 7",1187,"Dresden","Marketing",28,"Wagner"]
[2985,"Frau","Esther","Meister","Grabenstraße 87",38116,"Braunschweig","Logistik",29,"Wagner"]
[2986,"Herr","Dennis","Moll","Weidenstraße 46",18107,"Rostock","Produktion",29,"Wagner"]
[2987,"Herr","Bernd","Möller","Klosterstraße 25",21107,"Hamburg","Ausbildung",10,"Wagner"]
[2988,"Herr","Detlev","Seidel","Weinbergstraße 18",10585,"Berlin","Produktion",19,"Wagner"]
[2989,"Herr","Dieter","Seidel","Siedlerstraße 99",50823,"Köln","Außendienst",20,"Wagner"]
[2990,"Herr","Egon","Schmitz","Salzburgerstraße 36",30171,"Hannover","Logistik",21,"Wagner"]
[2991,"Frau","Susanne","Müller","Klosterstraße 4",22043,"Hamburg","Ausbildung",26,"Weißmann"]
[2992,"Frau","Alexandra","Köhler","Maderspergerstraße 45",42275,"Wuppertal","Außendienst",30,"Weißmann"]
[2993,"Frau","Nicole","Vosskamp","Molkereistraße 22",65185,"Wiesbaden","Buchhaltung",27,"Weißmann"]
[2994,"Frau","Verena","Hoffmann","Kremser Straße 30",6116,"Halle","Controlling",29,"Weißmann"]
[2995,"Frau","Hilde","Maier","Wiesenstraße 63",26127,"Oldenburg","Logistik",29,"Weißmann"]
[2996,"Herr","Eberhard","Schmitt","Anton-Bruckner-Straße 20",24145,"Kiel","Instandhaltung",19,"Weißmann"]
[2997,"Herr","Holger","Holstein","Florianistraße 10",10827,"Berlin","Produktion",20,"Weißmann"]
[2998,"Frau","Roswitha","Jansen","Badstraße 15",79106,"Freiburg","Forschung",23,"Weißmann"]
[2999,"Herr","Stefan","Beckhaus","Siedlungsstraße 73",10319,"Berlin","Produktion",21,"Weißmann"]
[3000,"Frau","Barbara","Wagner","Hubertusstraße 48",42109,"Wuppertal","Außendienst",26,"Weißmann"]
[3001,"Herr","Mike","Beckhaus","Nelkenstraße 81",10787,"Berlin","Produktion",13,"Weißmann"]
[3002,"Frau","Martina","Petersen","Andreas-Hofer-Straße 30",66129,"Saarbrücken","Warenausgang",26,"Weißmann"]
[3003,"Herr","Robert","Bergmann","Fadingerstraße 14",51065,"Köln","Außendienst",25,"Weißmann"]
[3004,"Frau","Theresa","Kessel","Kreuzstraße 2",76133,"Karlsruhe","Forschung",12,"Weißmann"]
[3005,"Herr","Mike","Meyer","Hamerlingstraße 77",40476,"Düsseldorf","Außendienst",28,"Weißmann"]
[3006,"Frau","Anja","Mayer","Innsbrucker Straße 9",20457,"Hamburg","Ausbildung",30,"Weißmann"]
[3007,"Frau","Florence","Seidel","Dr. Karl Renner-Straße 6",18069,"Rostock","Produktion",16,"Weißmann"]
[3008,"Frau","Roswitha","Bongartz","Dammstraße 40",53115,"Bonn","Außendienst",28,"Weißmann"]

{"sheet":"sogehts","index":5,"n_rows":34,"n_cols":3,"rows_kept":34,"cut":false,"hidden":true,"merged":[]}
[]
[]
[]
[]
[null,"Abteilung","Forschung"]
[]
[null,"Mitarbeiter",{"$f":"INDEX(Personen,1+_xlfn.AGGREGATE(15,6,ROW(A:A)/((Personen!$H$4:$H$1003)=$C$5),ROW(A1)),1)","v":2009}]
[null,null,{"$f":"INDEX(Personen,1+_xlfn.AGGREGATE(15,6,ROW(A:A)/((Personen!$H$4:$H$1003)=$C$5),ROW(A2)),1)","v":2052}]
[null,null,{"$f":"INDEX(Personen,1+_xlfn.AGGREGATE(15,6,ROW(A:A)/((Personen!$H$4:$H$1003)=$C$5),ROW(A3)),1)","v":2065}]
[null,null,{"$f":"INDEX(Personen,1+_xlfn.AGGREGATE(15,6,ROW(A:A)/((Personen!$H$4:$H$1003)=$C$5),ROW(A4)),1)","v":2117}]
[null,null,{"$f":"INDEX(Personen,1+_xlfn.AGGREGATE(15,6,ROW(A:A)/((Personen!$H$4:$H$1003)=$C$5),ROW(A5)),1)","v":2121}]
[null,null,{"$f":"INDEX(Personen,1+_xlfn.AGGREGATE(15,6,ROW(A:A)/((Personen!$H$4:$H$1003)=$C$5),ROW(A6)),1)","v":2129}]
[null,null,{"$f":"INDEX(Personen,1+_xlfn.AGGREGATE(15,6,ROW(A:A)/((Personen!$H$4:$H$1003)=$C$5),ROW(A7)),1)","v":2166}]
[null,null,{"$f":"INDEX(Personen,1+_xlfn.AGGREGATE(15,6,ROW(A:A)/((Personen!$H$4:$H$1003)=$C$5),ROW(A8)),1)","v":2189}]
[null,null,{"$f":"INDEX(Personen,1+_xlfn.AGGREGATE(15,6,ROW(A:A)/((Personen!$H$4:$H$1003)=$C$5),ROW(A9)),1)","v":2190}]
[null,null,{"$f":"INDEX(Personen,1+_xlfn.AGGREGATE(15,6,ROW(A:A)/((Personen!$H$4:$H$1003)=$C$5),ROW(A10)),1)","v":2231}]
[null,null,{"$f":"INDEX(Personen,1+_xlfn.AGGREGATE(15,6,ROW(A:A)/((Personen!$H$4:$H$1003)=$C$5),ROW(A11)),1)","v":2241}]
[null,null,{"$f":"INDEX(Personen,1+_xlfn.AGGREGATE(15,6,ROW(A:A)/((Personen!$H$4:$H$1003)=$C$5),ROW(A12)),1)","v":2261}]
[null,null,{"$f":"INDEX(Personen,1+_xlfn.AGGREGATE(15,6,ROW(A:A)/((Personen!$H$4:$H$1003)=$C$5),ROW(A13)),1)","v":2267}]
[null,null,{"$f":"INDEX(Personen,1+_xlfn.AGGREGATE(15,6,ROW(A:A)/((Personen!$H$4:$H$1003)=$C$5),ROW(A14)),1)","v":2268}]
[null,null,{"$f":"INDEX(Personen,1+_xlfn.AGGREGATE(15,6,ROW(A:A)/((Personen!$H$4:$H$1003)=$C$5),ROW(A15)),1)","v":2273}]
[null,null,{"$f":"INDEX(Personen,1+_xlfn.AGGREGATE(15,6,ROW(A:A)/((Personen!$H$4:$H$1003)=$C$5),ROW(A16)),1)","v":2303}]
[null,null,{"$f":"INDEX(Personen,1+_xlfn.AGGREGATE(15,6,ROW(A:A)/((Personen!$H$4:$H$1003)=$C$5),ROW(A17)),1)","v":2309}]
[null,null,{"$f":"INDEX(Personen,1+_xlfn.AGGREGATE(15,6,ROW(A:A)/((Personen!$H$4:$H$1003)=$C$5),ROW(A18)),1)","v":2324}]
[null,null,{"$f":"INDEX(Personen,1+_xlfn.AGGREGATE(15,6,ROW(A:A)/((Personen!$H$4:$H$1003)=$C$5),ROW(A19)),1)","v":2348}]
[null,null,{"$f":"INDEX(Personen,1+_xlfn.AGGREGATE(15,6,ROW(A:A)/((Personen!$H$4:$H$1003)=$C$5),ROW(A20)),1)","v":2359}]
[null,null,{"$f":"INDEX(Personen,1+_xlfn.AGGREGATE(15,6,ROW(A:A)/((Personen!$H$4:$H$1003)=$C$5),ROW(A21)),1)","v":2373}]
[null,null,{"$f":"INDEX(Personen,1+_xlfn.AGGREGATE(15,6,ROW(A:A)/((Personen!$H$4:$H$1003)=$C$5),ROW(A22)),1)","v":2374}]
[null,null,{"$f":"INDEX(Personen,1+_xlfn.AGGREGATE(15,6,ROW(A:A)/((Personen!$H$4:$H$1003)=$C$5),ROW(A23)),1)","v":2391}]
[null,null,{"$f":"INDEX(Personen,1+_xlfn.AGGREGATE(15,6,ROW(A:A)/((Personen!$H$4:$H$1003)=$C$5),ROW(A24)),1)","v":2398}]
[null,null,{"$f":"INDEX(Personen,1+_xlfn.AGGREGATE(15,6,ROW(A:A)/((Personen!$H$4:$H$1003)=$C$5),ROW(A25)),1)","v":2414}]
[null,null,{"$f":"INDEX(Personen,1+_xlfn.AGGREGATE(15,6,ROW(A:A)/((Personen!$H$4:$H$1003)=$C$5),ROW(A26)),1)","v":2444}]
[null,null,{"$f":"INDEX(Personen,1+_xlfn.AGGREGATE(15,6,ROW(A:A)/((Personen!$H$4:$H$1003)=$C$5),ROW(A27)),1)","v":2446}]
[null,null,{"$f":"INDEX(Personen,1+_xlfn.AGGREGATE(15,6,ROW(A:A)/((Personen!$H$4:$H$1003)=$C$5),ROW(A28)),1)","v":2469}]

{"sheet":"Urlaubsantrag","index":6,"n_rows":35,"n_cols":6,"rows_kept":35,"cut":false,"hidden":false,"merged":[[33,4,33,7]]}
[]
[null,"Urlaubsantrag"]
[]
[null,"Allgemeine Daten"]
[]
[null,"  Mitarbeiternr.:",null,2222]
[]
[null,"  Name:",null,{"$f":"VLOOKUP($D$6,Personen,4,0)","v":"Schuhmacher"}]
[]
[null,"  Vorname",null,{"$f":"VLOOKUP($D$6,Personen,3,0)","v":"Heike"}]
[]
[null,"  Abteilung:",null,{"$f":"VLOOKUP($D$6,Personen,8,0)","v":"Montage"}]
[]
[null,"  Vertretung:",null,{"$f":"VLOOKUP($D$6,Personen,10,0)","v":"Fuhrmeister"}]
[]
[]
[null,"Urlaubsdaten"]
[]
[null,"  Ich beantrage Urlaub "]
[null,null,"vom:","2020-06-01"]
[]
[null,null,"bis:","2020-06-03"]
[]
[null,"  Tage insgesamt",null,{"$f":"NETWORKDAYS(D20,D22,feiertage)","v":{"$error":"#REF!"}}]
[]
[null,"  verbleibender Urlaub",null,{"$f":"VLOOKUP(D6,Personen,9,0)-D24","v":{"$error":"#REF!"}},null,{"$f":"IF(D26<0,\"Eingabe ungültig\",\"\")","v":{"$error":"#REF!"}}]
[]
[]
[]
[]
[null,"Bewilligung",null,null,"Vorgesetzter:"]
[]
[null,"  Urlaub bewilligt:",null,"¨","………………………………………………………………"]
[null,null,null,null,"Herr Dr. Vollmer"]
[null,"  Urlaub abgelehnt:",null,"¨"]

{"sheet":"Datenbank","index":7,"n_rows":11,"n_cols":6,"rows_kept":11,"cut":false,"hidden":true,"merged":[]}
[]
["  Beantragter Urlaub"]
["Personal ID","Nachname","Beginn","Ende","Tage","Resturlaub"]
[]
[]
[2222,"Schuhmacher","2020-06-01","2020-06-03",2,29]
[2184,"Möller","2020-06-01","2020-06-03",2,19]
[2456,"Förster","2020-08-01","2020-08-07",5,21]
[2456,"Förster","2020-08-01","2020-08-07",5,21]
[3000,"Wagner","2020-08-01","2020-08-18",13,13]
[2056,"Bungart","2020-08-05","2020-08-18",9,22]

{"sheet":"Tabelle1","index":8,"n_rows":30,"n_cols":8,"rows_kept":30,"cut":false,"hidden":true,"merged":[]}
[]
[]
[]
[]
[null,"a"]
[]
[null,null,2222,"Schuhmacher","2017-06-01","2017-06-03",2,29]
[null,null,2222,"Schuhmacher","2017-06-01","2017-06-03",2,29]
[null,null,2222,"Schuhmacher","2017-06-01","2017-06-03",2,29]
[null,null,2222,"Schuhmacher","2017-06-01","2017-06-03",2,29]
[null,null,2222,"Schuhmacher","2017-06-01","2017-06-03",2,29]
[null,null,2222,"Schuhmacher","2017-06-01","2017-06-03",2,29]
[null,null,2222,"Schuhmacher","2017-06-01","2017-06-03",2,29]
[null,null,2222,"Schuhmacher","2017-06-01","2017-06-03",2,29]
[null,null,2222,"Schuhmacher","2017-06-01","2017-06-03",2,29]
[null,null,2222,"Schuhmacher","2017-06-01","2017-06-03",2,29]
[null,1,2222,"Schuhmacher","2017-06-01","2017-06-03",2,29]
[null,2]
[null,3]
[null,4]
[null,5]
[null,6]
[null,7]
[null,8]
[null,9]
[null,10]
[null,11]
[null,12]
[null,13]
[null,14]

{"sheet":"Artikel","index":9,"n_rows":53,"n_cols":5,"rows_kept":53,"cut":false,"hidden":true,"merged":[]}
[null,"Anzahl Artikel pro Kategorie"]
[null,"Kategorie","Anzahl"]
[null,"Süßigkeiten",{"$f":"COUNTIF(B6:B53,B3)","v":1}]
[]
["ID","Kategorie","Artikelname","Listenpreis","Liefereinheit"]
[85,"Backwaren & Backmischungen","Brownie Mix",12.49,"3 Kartons"]
[86,"Backwaren & Backmischungen","Cake Mix",15.99,"4 Kartons"]
[19,"Backwaren & Backmischungen","Chocolate Biscuits Mix",9.1999999999999993,"10 Kartons x 12 Stück"]
[21,"Backwaren & Backmischungen","Scones",10,"24 Packungen x 4 Stück"]
[83,"Chips, Snacks","Potato Chips",1.8]
[40,"Fleischkonserven","Crab Meat",18.399999999999999,"24 x 4-oz-Dosen"]
[96,"Fleischkonserven","Smoked Salmon",4,"5 oz"]
[95,"Fleischkonserven","Tuna Fish",2,"5 oz"]
[34,"Getränke","Beer",14,"24 x 12-oz-Flaschen"]
[1,"Getränke","Chai",18,"10 Kartons x 20 Beutel"]
[43,"Getränke","Coffee",46,"16 x 500-g-Dosen"]
[81,"Getränke","Green Tea",2.99,"20 Beutel pro Karton"]
[87,"Getränke","Tea",4,"100 Stück pro Karton"]
[52,"Getreide","Long Grain Rice",7,"16 x 2-kg-Kartons"]
[82,"Getreideprodukte","Granola",4]
[97,"Getreideprodukte","Hot Cereal",5]
[4,"Gewürze","Cajun Seasoning",22,"48 x 6-oz-Gläser"]
[77,"Gewürze","Mustard",13,"12 Kartons"]
[3,"Gewürze","Syrup",10,"12 x 550-ml-Flaschen"]
[6,"Marmelade, Konfitüre","Boysenberry Spread",25,"12 x 8-oz-Gläser"]
[20,"Marmelade, Konfitüre","Marmalade",81,"30 Geschenkpackungen"]
[72,"Milchprodukte","Mozzarella",34.799999999999997,"24 x 200-g-Packungen"]
[102,"Molkerei","Butter",2.7]
[56,"Nudeln","Gnocchi",38,"24 x 250-g-Packungen"]
[57,"Nudeln","Ravioli",19.5,"24 x 250-g-Packungen"]
[91,"Obst- & Gemüsekonserven","Cherry Pie Filling",2,"15,25 oz"]
[93,"Obst- & Gemüsekonserven","Corn",1.2,"14,5 oz"]
[17,"Obst- & Gemüsekonserven","Fruit Cocktail",39,"15,25 oz"]
[92,"Obst- & Gemüsekonserven","Green Beans",1.2,"14,5 oz"]
[89,"Obst- & Gemüsekonserven","Peaches",1.5,"15,25 oz"]
[88,"Obst- & Gemüsekonserven","Pears",1.3,"15,25 oz"]
[94,"Obst- & Gemüsekonserven","Peas",1.5,"14,5 oz"]
[90,"Obst- & Gemüsekonserven","Pineapple",1.8,"15,25 oz"]
[5,"Öl","Olive Oil",21.35,"36 Kartons"]
[8,"Saucen","Curry Sauce",40,"12 x 12-oz-Gläser"]
[65,"Saucen","Hot Pepper Sauce",21.05,"32 x 8-oz-Flaschen"]
[66,"Saucen","Tomato Sauce",17,"24 x 8-oz-Gläser"]
[99,"Suppen","Chicken Soup",1.95]
[100,"Suppen","Chinese Sweetsour Soup",2.5]
[41,"Suppen","Clam Chowder",9.65,"12 x 12-oz-Dosen"]
[101,"Suppen","Linsen Soup",3.5]
[98,"Suppen","Vegetable Soup",1.89]
[48,"Süßigkeiten","Chocolate",12.75,"10 Packungen"]
[74,"Trockenfrüchte & Nüsse","Almonds",10,"5-kg-Packungen"]
[51,"Trockenfrüchte & Nüsse","Dried Apples",53,"50 x 300-g-Packungen"]
[7,"Trockenfrüchte & Nüsse","Dried Pears",30,"12 x 1-lb-Packungen"]
[80,"Trockenfrüchte & Nüsse","Dried Plums",3.5,"1-lb-Beutel"]
[14,"Trockenfrüchte & Nüsse","Walnuts",23.25,"40 x 100-g-Packungen"]

{"sheet":"Abfrage","index":10,"n_rows":11,"n_cols":9,"rows_kept":11,"cut":false,"hidden":true,"merged":[]}
["PersonId"]
[2009]
[]
[null,null,null,null,null,null,null,null,"Problem beim \"Rüberziehen von Matrizen\""]
[null,null,null,null,"Vorname",{"$f":"VLOOKUP(Abfrage!$A$2,Personen!A4:H1003,3,FALSE)","v":"Dorothee"},null,null,"Wie wird Datenüberprüfungsfeld wieder gelöscht ???"]
[null,null,null,null,"Name",{"$f":"VLOOKUP(Abfrage!$A$2,Personen!A4:H1004,4,FALSE)","v":"Schröder"},null,null,"(button \"Alle löschen\")"]
[null,null,null,null,"Straße",{"$f":"VLOOKUP(Abfrage!$A$2,Personen!A6:H1005,5,FALSE)","v":{"$error":"#N/A"}}]
[null,null,null,null,"PLZ",{"$f":"VLOOKUP(Abfrage!$A$2,Personen!A7:H1006,6,FALSE)","v":{"$error":"#N/A"}},null,null,"Tipp: Liste markieren Strg + Shift + pfeil unten"]
[null,null,null,null,null,null,null,null,"vorher ganze obere Zeile markieren"]
[]
[null,null,null,null,null,null,null,null,"häufiger Fehler beim \"Runterziehen\" Matrix verändert sich wert 2009 eingeben !!!"]

{"sheet":"SVERWEIS TRUE","index":11,"n_rows":11,"n_cols":7,"rows_kept":11,"cut":false,"hidden":false,"merged":[]}
[]
[null,"Berechnungen mit Hilfe der Funktion SVERWEIS"]
[]
[]
[]
[null,null,null,null,null,"Gramm","Preis"]
[null,null,null,null,null,0,0.8]
["Berechnung der Portokosten eines Briefs",null,null,null,"ab",20,0.95]
[null,null,null,null,"ab",50,1.55]
["Briefgewicht in Gramm:",null,"Gramm",null,"ab",500,2.7]
["Porto:",{"$f":"VLOOKUP(B10,F7:G11,2,TRUE)","v":0.8},null,null,"ab",1000,"kein Brief mehr"]

{"sheet":"IHK Notenschlüssel","index":12,"n_rows":82,"n_cols":7,"rows_kept":82,"cut":false,"hidden":false,"merged":[[28,4,28,5],[12,4,12,5],[15,4,15,5],[18,4,18,5],[21,4,21,5],[24,4,24,5],[27,4,27,5],[13,4,13,5],[16,4,16,5],[19,4,19,5],[22,4,22,5],[25,4,25,5]]}
[]
[null,null,null,null,"Prozent","Note","Bewertung"]
["IHK-Notenschlüssel",null,null,null,18,{"$f":"VLOOKUP(E3,A6:B82,2,TRUE)","v":5.7},{"$f":"VLOOKUP(E3,E6:F11,2,1)","v":"ungenügend"}]
[]
["Prozent","Note",null,null,"Punkte","Bewertung"]
[0,6,null,null,0,"ungenügend"]
[6,5.9,null,null,30,"mangelhaft"]
[12,5.8,null,null,50,"ausreichend"]
[17,5.7,null,null,67,"befriedigend"]
[23,5.6,null,null,81,"gut"]
[29,5.5,null,null,92,"sehr gut"]
[30,5.4]
[31,5.4,null,null,"100-92 Prozent"]
[32,5.3,null,null," = Sehr Gut"]
[33,5.3]
[34,5.2,null,null,"91-81 Prozent"]
[35,5.2,null,null," = Gut"]
[36,5.0999999999999996]
[37,5.0999999999999996,null,null,"80-67 Prozent"]
[38,5,null,null," = Befriedigend"]
[39,5]
[40,5,null,null,"66-50 Prozent"]
[41,4.9000000000000004,null,null," = Ausreichend"]
[42,4.9000000000000004]
[43,4.8,null,null,"49-30 Prozent"]
[44,4.8,null,null," = Mangelhaft"]
[45,4.7]
[46,4.7,null,null,"29-0 Prozent"]
[47,4.5999999999999996,null,null," = Ungenügend"]
[48,4.5999999999999996]
[49,4.5]
[50,4.4000000000000004]
[51,4.4000000000000004]
[52,4.3]
[53,4.3]
[54,4.2]
[55,4.0999999999999996]
[56,4.0999999999999996]
[57,4]
[58,4]
[59,3.9]
[60,3.9]
[61,3.8]
[62,3.7]
[63,3.7]
[64,3.6]
[65,3.6]
[66,3.5]
[67,3.4]
[68,3.3]
[69,3.3]
[70,3.2]
[71,3.1]
[72,3.1]
[73,3]
[74,2.9]
[75,2.9]
[76,2.8]
[77,2.7]
[78,2.7]
[79,2.6]
[80,2.5]
[81,2.4]
[82,2.2999999999999998]
[83,2.2000000000000002]
[84,2.1]
[85,2]
[86,2]
[87,1.9]
[88,1.8]
[89,1.7]
[90,1.6]
[91,1.5]
[92,1.4]
[93,1.4]
[94,1.3]
[95,1.3]
[96,1.2]
[97,1.2]
[98,1.1000000000000001]
[99,1.1000000000000001]
[100,1]

{"sheet":"Chefliste","index":13,"n_rows":6,"n_cols":1,"rows_kept":6,"cut":false,"hidden":false,"merged":[]}
[]
["Vorgesetzte"]
["Herr Dr. Häusl"]
["Frau Dipl.-Ing. Wiese"]
["Herr Dr. Vollmer"]
["Frau Fuchs"]

{"sheet":"Liste Feiertage","index":14,"n_rows":14,"n_cols":2,"rows_kept":14,"cut":false,"hidden":false,"merged":[]}
["Datum","Feiertage Bayern 2020"]
["2020-01-01","Neujahr"]
["2020-01-06","Heilige Drei Könige"]
["2020-04-10","Karfreitag"]
["2020-04-13","Ostermontag"]
["2020-05-01","Maifeiertag"]
["2020-05-21","Christi Himmelfahrt"]
["2020-06-01","Pfingstmontag"]
["2020-06-11","Fronleichnam"]
["2020-08-15","Mariä Himmelfahrt"]
["2020-10-03","Tag der Deutschen Einheit"]
["2020-11-01","Allerheiligen"]
["2020-12-25","1. Weihnachtstag"]
["2020-12-26","2. Weihnachtstag"]

{"sheet":"Makros","index":15,"n_rows":0,"n_cols":0,"rows_kept":0,"cut":false,"hidden":true,"merged":[]}